Workbook

Sheet 4 вариант 15.02 (hidden)
A1: IV. Реестр многоквартирных домов, которые подлежат капитальному ремонту в 2018 году, с учетом мер государственной поддержки
A2: № п\п | B2: Адрес МКД | C2: Стоимость капитального ремонта ВСЕГО | D2: Виды работ
D3: Ремонт внутридомовых инженерных систем | J3: Ремонт или замена лифтового оборудования | L3: Ремонт крыши | N3: Ремонт подвальных помещений | P3: Ремонт фасада | R3: Ремонт фундамента | T3: Ремонт подъездов | V3: Утепление фасадов | X3: Установка коллектив-ных (общедо-мовых) ПУ и УУ | Y3: Проект-ные работы | Z3: Работы по предпроектной подготовке
D4: Всего работ по инженерным системам | E4: в том числе
E5: Ремонт сетей электроснабжения | F5: Ремонт сетей теплоснабжения | G5: Ремонт сетей холодного водоснабжения | H5: Ремонт сетей горячего водоснабжения | I5: Ремонт систем водоотведения
C6: руб. | D6: руб. | E6: руб. | F6: руб. | G6: руб. | H6: руб. | I6: руб. | J6: ед. | K6: руб. | L6: кв.м. | M6: руб. | N6: кв.м. | O6: руб. | P6: кв.м. | Q6: руб. | R6: куб.м. | S6: руб. | T6: куб.м. | U6: руб. | V6: кв.м. | W6: руб. | X6: руб. | Y6: руб. | Z6: руб.
A7: 1 | B7: 2 | C7: 3 | D7: 4 | E7: 5 | F7: 6 | G7: 7 | H7: 8 | I7: 9 | J7: 10 | K7: 11 | L7: 12 | M7: 13 | N7: 14 | O7: 15 | P7: 16 | Q7: 17 | R7: 18 | S7: 19 | T7: 20 | U7: 21 | V7: 22 | W7: 23 | X7: 24 | Y7: 25 | Z7: 24
A8: Объекты культурного наследия по г. Выборгу
A9: Муниципальное образование "Город Выборг"
A10: 1 | B10: г. Выборг, просп. Ленина, д. 6 | C10: =M10+Q10 -> 49775695.93 | D10: =E10+F10+G10+H10+I10 -> 0 | L10: 998 | M10: 10968656.84 | P10: 3425 | Q10: 38807039.09
A11: =A10+1 -> 2 | B11: г. Выборг, ул. Железнодорожная, д. 2 | C11: =M11+Q11 -> 71246479.39 | D11: 0 | L11: 2373 | M11: 27524999 | P11: 5336 | Q11: 43721480.39
A12: =A11+1 -> 3 | B12: г. Выборг, ул. Железнодорожная, д. 4 | C12: 32678707.01 | D12: 0 | L12: 872 | M12: 11984761.14 | P12: 2144 | Q12: 20693945.87
A13: 4 | B13: г. Выборг, ул. Крепостная, д. 37 | C13: 35893316.08 | D13: 0 | P13: 3816 | Q13: 35893316.08
A14: 5 | B14: г. Выборг, просп. Ленина, д. 20 | C14: 41972672.83 | D14: 0 | L14: 1343 | M14: 15061442.03 | P14: 3979 | Q14: 26911230.8
A15: 6 | B15: г. Выборг, просп. Ленина, д. 18 | C15: 59578132.51 | D15: 0 | L15: 2045 | M15: 24228789.09 | P15: 6152 | Q15: 35349343.42
A16: 7 | B16: г. Выборг, просп. Суворова, д. 25 | C16: 45928527.66 | D16: 0 | L16: 844 | M16: 10966897.22 | P16: 2501 | Q16: 34961630.44
A17: 8 | B17: г. Выборг, ул. Северная, д. 8 | C17: 51170285.81 | D17: 0 | P17: 6460 | Q17: 51170285.81
A18: 9 | B18: г. Выборг, ул. Северная, д. 10 | C18: 60495179.12 | D18: 0 | P18: 4160 | Q18: 60495179.12
A19: 10 | B19: г. Выборг, Ленинградский пр., д. 14 | C19: 26008913.35 | D19: 0 | L19: 540 | M19: 7099248.06 | P19: 2623 | Q19: 18909665.29
A20: 11 | B20: г. Выборг, Ленинградский пр., д. 16 | C20: 26073352.2 | D20: 0 | L20: 760 | M20: 8877863.95 | P20: 1116 | Q20: 17195488.25
A21: 12 | B21: г. Выборг, Ленинградский пр., д. 31 | C21: 64195351.77 | D21: 0 | L21: 1598 | M21: 15544550 | P21: 5534 | Q21: 48650801.77
A22: 13 | B22: г. Выборг, Ленинградское ш., д. 1 | C22: 96318597.45 | D22: 0 | L22: 2280 | M22: 22581195.35 | P22: 6423 | Q22: 73737402.1
A23: Итого по муниципальному образованию | C23: =SUM(C10:C22) -> 661335211.1 | D23: =SUM(D10:D22) -> 0 | E23: 0 | F23: 0 | G23: 0 | H23: 0 | I23: 0 | J23: 0 | K23: 0 | L23: 13653 | M23: =SUM(M10:M22) -> 154838402.7 | N23: 0 | O23: 0 | P23: 53669 | Q23: 506496808.4 | R23: 0 | S23: 0 | T23: 0 | U23: 0 | V23: 0 | W23: 0 | X23: 0 | Y23: 0
A24: ИТОГО по Ленинградской области | C24: =C23 -> 661335211.1 | D24: =D23 -> 0 | E24: 0 | F24: 0 | G24: 0 | H24: 0 | I24: 0 | J24: 0 | K24: 0 | L24: 13653 | M24: 154838402.7 | N24: 0 | O24: 0 | P24: 53669 | Q24: 506496808.4 | R24: 0 | S24: 0 | T24: 0 | U24: 0 | V24: 0 | W24: 0 | X24: 0 | Y24: 0
A25: Осуществление строительного контроля | C25: =C24*0.0214 -> 14152573.52
A26: Итого по Ленинградской области со строительным контролем | C26: =C24+C25 -> 675487784.6
Z42: =SUM(Z24:Z41) -> 0
Z47: =SUM(Z44:Z46) -> 0
Z48: =Z42+#REF!+Z47+#REF! -> 
Z100: =SUM(Z87:Z99) -> 0
Z123: =SUM(Z105:Z122) -> 0
Z134: =SUM(Z128:Z133) -> 0
Z142: =SUM(Z136:Z141) -> 0
Z148: =SUM(Z144:Z146) -> 0
Z149: =Z100+Z123+Z134+Z148+Z142+Z126 -> 0
Z156: =SUM(Z152:Z155) -> 0
Z220: =SUM(Z161:Z219) -> 0
Z227: =SUM(Z226) -> 0
Z234: =Z156+Z220+Z227 -> 0
Z249: =SUM(Z237:Z248) -> 0
Z254: =SUM(Z251:Z253) -> 0
Z255: =Z249+Z254 -> 0
Z285: =SUM(Z258:Z284) -> 0
Z290: =SUM(Z287:Z289) -> 0
Z294: =SUM(Z292:Z293) -> 0
Z295: =Z285+Z294+Z290 -> 0
Z322: =SUM(Z298:Z321) -> 0
Z339: =SUM(Z324:Z338) -> 0
Z346: =SUM(Z341:Z345) -> 0
Z349: =SUM(Z348:Z348) -> 0
Z357: =SUM(Z351:Z356) -> 0
Z365: =SUM(Z359:Z364) -> 0
Z366: =E366+F366+G366+H366+I366+K366+M366+O366+Q366+S366+U366+V366+W366+X366 -> 0
Z367: =E367+F367+G367+H367+I367+K367+M367+O367+Q367+S367+U367+V367+W367+X367 -> 0
Z368: =E368+F368+G368+H368+I368+K368+M368+O368+Q368+S368+U368+V368+W368+X368 -> 0
Z369: =E369+F369+G369+H369+I369+K369+M369+O369+Q369+S369+U369+V369+W369+X369 -> 0
Z370: =E370+F370+G370+H370+I370+K370+M370+O370+Q370+S370+U370+V370+W370+X370 -> 0
Z396: =SUM(Z372:Z395) -> 0
Z397: =SUM(Z396+Z365+Z357+Z349+Z346+Z339+Z322) -> 0
Z433: =SUM(Z400:Z432) -> 0
Z434: =Z433 -> 0
Z443: =SUM(Z437:Z440) -> 0
Z446: =SUM(Z445:Z445) -> 0
Z451: =SUM(Z448:Z450) -> 0
Z457: =SUM(Z453:Z456) -> 0
Z463: =SUM(Z459:Z462) -> 0
Z467: =SUM(Z465:Z466) -> 0
Z473: =SUM(Z469:Z472) -> 0
Z474: =Z451+Z443+Z446+Z473+Z467+Z457+Z463 -> 0
Z479: =SUM(Z477:Z478) -> 0
Z502: =SUM(Z493:Z501) -> 0
Z506: =SUM(Z504:Z505) -> 0
Z509: =SUM(Z508:Z508) -> 0
Z518: =SUM(Z511:Z517) -> 0
Z526: =SUM(Z520:Z525) -> 0
Z529: =SUM(Z528:Z528) -> 0
Z532: =SUM(Z531) -> 0
Z539: =Z479+Z502+Z506+Z509+Z518+Z526+Z529+Z532+Z538 -> 0
Z550: =SUM(Z542:Z549) -> 0
Z551: =Z550 -> 0
Z559: =SUM(Z554:Z558) -> 0
Z565: =SUM(Z561:Z564) -> 0
Z570: =SUM(Z567:Z569) -> 0
Z576: =SUM(Z572:Z575) -> 0
Z580: =SUM(Z578:Z579) -> 0
Z588: =Z586+Z587 -> 0
Z589: =Z559+Z565+Z570+Z576+Z580 -> 0
Z593: =SUM(Z592:Z592) -> 0
Z596: =SUM(Z595) -> 0
Z634: =SUM(Z598:Z633) -> 0
Z635: =Z634+Z596+Z593 -> 0
Z756: =SUM(Z637:Z755) -> 0
Z868: =SUM(Z764:Z867) -> 0
Z888: =SUM(Z870:Z887) -> 0
Z889: =Z868+Z888 -> 0
Z893: =SUM(Z892:Z892) -> 0
Z901: =SUM(Z895:Z900) -> 0
Z904: =SUM(Z903:Z903) -> 0
Z924: =SUM(Z906:Z923) -> 0
Z927: =SUM(Z926:Z926) -> 0
Z930: =SUM(Z929) -> 0
Z931: =Z901+Z904+Z927+Z924+Z893+Z930 -> 0
Y933: =#REF!-#REF! -> 
Y934: =#REF!-Y933 -> 
Y936: 80325165.22
Y937: =Y933-Y936 -> 

Sheet Итого Раздел I
M1: УТВЕРЖДЕН
M2: постановлением Правительства
M3: Ленинградской области
M4: от 23 июля 2019 года N 345
M5: (в редакции постановления
M6: Правительства Ленинградской области
M8: (приложение 2)
A10: Краткосрочный план реализации в 2020-2022 годах Региональной программы капитального ремонта общего имущества в многоквартирных домах, расположенных на территории Ленинградской области
A11: Раздел I. Перечень многоквартирных домов, в которых будет проводиться капитальный ремонт лифтового оборудования в 2020-2022 годах, за счет средств собственников, формирующих фонд капитального ремонта на счетах регионального оператора
A12: № п\п | B12: Адрес МКД | C12: Год | E12: Материал стен | F12: Количество этажей | G12: Количество лифтов | H12: Количество подъездов | I12: общая площадь МКД, всего | J12: Площадь помещений МКД: | L12: Количество жителей, зарегистрированных в МКД | M12: Стоимость капитального ремонта за счет средств собственников помещений в МКД | N12: Плановая дата завершения работ | O12: способ формирования фонда капитального ремонта
C13: ввода в эксплуатацию | D13: завершение последнего капитального ремонта | J13: всего: | K13: в том числе жилых помещений, находящихся в собственности граждан
I15: кв.м | J15: кв.м | K15: кв.м | L15: чел.
A16: 1 | B16: 2 | C16: 3 | D16: 4 | E16: 5 | F16: 6 | G16: 7 | H16: 8 | I16: 9 | J16: 10 | K16: 11 | L16: 12 | M16: 13 | N16: 14 | O16: 15 | P16: 20 | Q16: 21 | R16: 22 | S16: 23 | T16: 24 | U16: 25
A17: Волховский муниципальный район
A18: Муниципальное образование Город Волхов
A19: 1 | B19: Г. Волхов, просп. Волховский, д. 57 | C19: 1994 | E19: кирпич | F19: 9 | G19: 1 | H19: 1 | I19: 3238.7 | J19: 2407 | K19: 2047 | L19: 111 | M19: =SUMIF('2020 Раздел 2'!B:B,B19,'2020 Раздел 2'!C:C)+SUMIF('2021 Раздел 3'!B:B,B19,'2021 Раздел 3'!C:C)+SUMIF('2022 Раздел 4'!B:B,B19,'2022 Раздел 4'!C:C) -> 2735709.46 | N19: 2022-12-30 | O19: РО
A20: Итого по муниципальному образованию | C20: х | D20: х | E20: х | F20: х | G20: =SUM(G19) -> 1 | H20: х | I20: =SUM(I19) -> 3238.7 | J20: =SUM(J19) -> 2407 | K20: 2047 | L20: 111 | M20: =M19 -> 2735709.46 | N20: х | O20: х
A21: Итого по Волховскому муниципальному району | C21: х | D21: х | E21: х | F21: х | G21: =SUM(G20) -> 1 | H21: х | I21: =SUM(I20) -> 3238.7 | J21: 2407 | K21: 2047 | L21: 111 | M21: 2735709.46 | N21: х | O21: х | P21: =M21-'2021 Раздел 3'!C9-'2022 Раздел 4'!C10 -> 0
A22: Всеволожский муниципальный район
A23: Муниципальное образование "Город Всеволожск"
A24: =A19+1 -> 2 | B24: Г. Всеволожск, ул. Александровская, д. 81, корп. 3 | C24: 1996 | F24: 8 | G24: 2 | H24: 2 | I24: 4215.1 | J24: 4215.1 | K24: 2782 | L24: 170 | M24: =SUMIF('2020 Раздел 2'!B:B,B24,'2020 Раздел 2'!C:C)+SUMIF('2021 Раздел 3'!B:B,B24,'2021 Раздел 3'!C:C)+SUMIF('2022 Раздел 4'!B:B,B24,'2022 Раздел 4'!C:C) -> 4865616.86 | N24: 2022-12-30 | O24: РО
A25: =A24+1 -> 3 | B25: Г. Всеволожск, ул. Балашова, д. 8/3 | C25: 1995 | F25: 9 | G25: 2 | H25: 2 | I25: 4768.2 | J25: 4768.2 | K25: 2407 | L25: 154 | M25: =SUMIF('2020 Раздел 2'!B:B,B25,'2020 Раздел 2'!C:C)+SUMIF('2021 Раздел 3'!B:B,B25,'2021 Раздел 3'!C:C)+SUMIF('2022 Раздел 4'!B:B,B25,'2022 Раздел 4'!C:C) -> 5040221.52 | N25: 2022-12-30 | O25: РО
A26: 4 | B26: Г. Всеволожск, ул. Василеозерская, д. 5 | C26: 1995 | F26: 10 | G26: 2 | H26: 2 | I26: 5400.9 | J26: 5400.9 | K26: 2392 | L26: 141 | M26: =SUMIF('2020 Раздел 2'!B:B,B26,'2020 Раздел 2'!C:C)+SUMIF('2021 Раздел 3'!B:B,B26,'2021 Раздел 3'!C:C)+SUMIF('2022 Раздел 4'!B:B,B26,'2022 Раздел 4'!C:C) -> 5056930.92 | N26: 2022-12-30 | O26: РО
A27: 5 | B27: Г. Всеволожск, ул. Василеозерская, д. 7 | C27: 1996 | F27: 10 | G27: 2 | H27: 2 | I27: 5786.9 | J27: 5786.9 | K27: 3645 | L27: 205 | M27: =SUMIF('2020 Раздел 2'!B:B,B27,'2020 Раздел 2'!C:C)+SUMIF('2021 Раздел 3'!B:B,B27,'2021 Раздел 3'!C:C)+SUMIF('2022 Раздел 4'!B:B,B27,'2022 Раздел 4'!C:C) -> 5471418.92 | N27: 2022-12-30 | O27: РО
A28: 6 | B28: Г. Всеволожск, ул. Ленинградская, д. 24/84 | C28: 1994 | F28: 10 | G28: 5 | H28: 5 | I28: 13448.5 | J28: 13448.5 | K28: 3707.4 | L28: 199.7 | M28: =SUMIF('2020 Раздел 2'!B:B,B28,'2020 Раздел 2'!C:C)+SUMIF('2021 Раздел 3'!B:B,B28,'2021 Раздел 3'!C:C)+SUMIF('2022 Раздел 4'!B:B,B28,'2022 Раздел 4'!C:C) -> 12600553.8 | N28: 2022-12-30 | O28: РО
A29: 7 | B29: Г. Всеволожск, ул. Ленинградская, д. 30, корп. 1 | C29: 1993 | F29: 9 | G29: 1 | H29: 3 | I29: 6885.1 | J29: 6885.1 | K29: 3964.8 | L29: 208.9 | M29: =SUMIF('2020 Раздел 2'!B:B,B29,'2020 Раздел 2'!C:C)+SUMIF('2021 Раздел 3'!B:B,B29,'2021 Раздел 3'!C:C)+SUMIF('2022 Раздел 4'!B:B,B29,'2022 Раздел 4'!C:C) -> 2735709.46 | N29: 2022-12-30 | O29: РО
A30: Итого по муниципальному образованию | C30: x | D30: x | E30: x | F30: x | G30: =SUM(G24:G29) -> 14 | H30: x | I30: =SUM(I24:I29) -> 40504.7 | J30: =SUM(J24:J29) -> 40504.7 | K30: =SUM(K24:K29) -> 18898.2 | L30: =SUM(L24:L29) -> 1078.6 | M30: =SUM(M24:M29) -> 35770451.48 | N30: x | O30: x | P30: =M30-'2020 Раздел 2'!C11-'2021 Раздел 3'!C18-'2022 Раздел 4'!C15 -> 0 | Q30: =#REF!-'2020 Раздел 2'!C11-'2021 Раздел 3'!C18-'2022 Раздел 4'!C15 -> 
A31: Муниципальное образование Муринское городское поселение
A32: =A29+1 -> 8 | B32: г. Мурино, ул. Оборонная, д. 12 | C32: 1992 | E32: кирпич | F32: 9 | G32: 2 | H32: 2 | I32: 5334 | J32: 4507 | K32: 2782 | L32: 170 | M32: =SUMIF('2020 Раздел 2'!B:B,B32,'2020 Раздел 2'!C:C)+SUMIF('2021 Раздел 3'!B:B,B32,'2021 Раздел 3'!C:C)+SUMIF('2022 Раздел 4'!B:B,B32,'2022 Раздел 4'!C:C) -> 5040221.52 | N32: 2022-12-30 | O32: РО
A33: =A32+1 -> 9 | B33: г. Мурино, ул. Оборонная, д. 22 | C33: 1993 | E33: Ж/б панели | F33: 10 | G33: 1 | H33: 2 | I33: 5436 | J33: 4484 | K33: 2392 | L33: 141 | M33: =SUMIF('2020 Раздел 2'!B:B,B33,'2020 Раздел 2'!C:C)+SUMIF('2021 Раздел 3'!B:B,B33,'2021 Раздел 3'!C:C)+SUMIF('2022 Раздел 4'!B:B,B33,'2022 Раздел 4'!C:C) -> 2604385.46 | N33: 2022-12-30 | O33: РО | Q33: =#REF!-'2020 Раздел 2'!C16-'2021 Раздел 3'!C23 -> 
A34: =A33+1 -> 10 | B34: г. Мурино, ул. Оборонная, д. 24 | C34: 1994 | E34: Ж/б панели | F34: 10 | G34: 3 | H34: 3 | I34: 8215 | J34: 6784 | K34: 3645 | L34: 205 | M34: =SUMIF('2020 Раздел 2'!B:B,B34,'2020 Раздел 2'!C:C)+SUMIF('2021 Раздел 3'!B:B,B34,'2021 Раздел 3'!C:C)+SUMIF('2022 Раздел 4'!B:B,B34,'2022 Раздел 4'!C:C) -> 7560332.28 | N34: 2022-12-30 | O34: РО
A35: Итого по муниципальному образованию | C35: x | D35: x | E35: x | F35: x | G35: =SUM(G32:G34) -> 6 | H35: x | I35: 18985 | J35: 15775 | K35: 8819 | L35: 516 | M35: =SUM(M32:M34) -> 15204939.26 | N35: x | O35: x | P35: =M35-'2020 Раздел 2'!C16-'2021 Раздел 3'!C23 -> 0
A36: Муниципальное образование Свердловское городское поселение
A37: =A34+1 -> 11 | B37: Пос. им. Свердлова, микрорайон 1, д. 8 | C37: 1994 | E37: Ж/б панели | F37: 9 | G37: 4 | H37: 4 | I37: 8231.7 | J37: 8202.3 | K37: 8132.9 | L37: 273 | M37: =SUMIF('2020 Раздел 2'!B:B,B37,'2020 Раздел 2'!C:C)+SUMIF('2021 Раздел 3'!B:B,B37,'2021 Раздел 3'!C:C)+SUMIF('2022 Раздел 4'!B:B,B37,'2022 Раздел 4'!C:C) -> 10080443.04 | N37: 2022-12-30 | O37: РО
A38: Итого по муниципальному образованию | C38: x | D38: x | E38: x | F38: x | G38: =G37 -> 4 | H38: =SUM(H37) -> 4 | I38: =SUM(I37) -> 8231.7 | J38: =SUM(J37) -> 8202.3 | K38: =SUM(K37) -> 8132.9 | L38: =SUM(L37) -> 273 | M38: =M37 -> 10080443.04 | N38: x | O38: x
A39: Муниципальное образование Сертолово
A40: =A37+1 -> 12 | B40: г.Сертолово, микрорайон Сертолово-1, ул.Ветеранов,д.11,корп.1 | C40: 1998 | E40: панельный | F40: 9 | G40: 3 | H40: 3 | I40: 6816.5 | J40: 6088.2 | K40: 5657.15 | L40: 216 | M40: =SUMIF('2020 Раздел 2'!B:B,B40,'2020 Раздел 2'!C:C)+SUMIF('2021 Раздел 3'!B:B,B40,'2021 Раздел 3'!C:C)+SUMIF('2022 Раздел 4'!B:B,B40,'2022 Раздел 4'!C:C) -> 8208570.39 | N40: 2022-12-30 | O40: РО
A41: =A40+1 -> 13 | B41: г.Сертолово, микрорайон Сертолово-1, ул. Ветеранов, д. № 11 корп. 2 | C41: 1994 | E41: Ж/б панели | F41: 10 | G41: 3 | H41: 3 | I41: 7576.8 | J41: 7560.2 | K41: 6724.1 | L41: 312 | M41: =SUMIF('2020 Раздел 2'!B:B,B41,'2020 Раздел 2'!C:C)+SUMIF('2021 Раздел 3'!B:B,B41,'2021 Раздел 3'!C:C)+SUMIF('2022 Раздел 4'!B:B,B41,'2022 Раздел 4'!C:C) -> 7901346.24 | N41: 2022-12-30 | O41: РО
A42: =A41+1 -> 14 | B42: Г. Сертолово, микрорайон Сертолово-1, ул. Молодежная, д. 8, корп. 2 | C42: 1993 | E42: панельный | F42: 10 | H42: 3 | I42: 7982.3 | J42: 7092.3 | K42: 7092.3 | L42: 286 | M42: =SUMIF('2020 Раздел 2'!B:B,B42,'2020 Раздел 2'!C:C)+SUMIF('2021 Раздел 3'!B:B,B42,'2021 Раздел 3'!C:C)+SUMIF('2022 Раздел 4'!B:B,B42,'2022 Раздел 4'!C:C) -> 60450 | N42: 2022-12-30 | O42: РО
A43: 15 | B43: г.Сертолово, микрорайон Сертолово-1, ул.Центральная, д. 3 | C43: 1996 | E43: пан | F43: 10 | G43: 3 | H43: 3 | I43: 8340 | J43: 7249.8 | K43: 6747.7 | L43: 347 | M43: =SUMIF('2020 Раздел 2'!B:B,B43,'2020 Раздел 2'!C:C)+SUMIF('2021 Раздел 3'!B:B,B43,'2021 Раздел 3'!C:C)+SUMIF('2022 Раздел 4'!B:B,B43,'2022 Раздел 4'!C:C) -> 8151789.24 | N43: 2022-12-30 | O43: РО
A44: 16 | B44: Г. Сертолово, микрорайон Сертолово-1, ул. Центральная, д. 7, корп. 1 | C44: 1993 | E44: панельный | F44: 10 | G44: 3 | H44: 3 | I44: 7654 | J44: 6803.8 | K44: 6803.8 | L44: 296 | M44: =SUMIF('2020 Раздел 2'!B:B,B44,'2020 Раздел 2'!C:C)+SUMIF('2021 Раздел 3'!B:B,B44,'2021 Раздел 3'!C:C)+SUMIF('2022 Раздел 4'!B:B,B44,'2022 Раздел 4'!C:C) -> 8401398.54 | N44: 2022-12-30 | O44: РО
A45: 17 | B45: Г. Сертолово, микрорайон Сертолово-1, ул. Центральная, д. 6, корп. 1 | C45: 1994 | E45: панельный | F45: 10 | G45: 3 | H45: 3 | I45: 7572 | J45: 6727 | K45: 6727 | L45: 339 | M45: =SUMIF('2020 Раздел 2'!B:B,B45,'2020 Раздел 2'!C:C)+SUMIF('2021 Раздел 3'!B:B,B45,'2021 Раздел 3'!C:C)+SUMIF('2022 Раздел 4'!B:B,B45,'2022 Раздел 4'!C:C) -> 8347235.03 | N45: 2022-12-30 | O45: РО
A46: Итого по муниципальному образованию | C46: x | D46: x | E46: x | F46: x | G46: =SUM(G40:G45) -> 15 | H46: x | I46: =SUM(I40:I45) -> 45941.6 | J46: =SUM(J40:J45) -> 41521.3 | K46: =SUM(K40:K45) -> 39752.05 | L46: =SUM(L40:L45) -> 1796 | M46: =SUM(M40:M45) -> 41070789.44 | N46: x | O46: x
A47: Итого по Всеволожскому муниципальному району | C47: x | D47: x | E47: x | F47: x | G47: =G46+G38+G35+G30 -> 39 | H47: х | I47: =I46+I38+I35+I30 -> 113663 | J47: =J46+J38+J35+J30 -> 106003.3 | K47: =K46+K38+K35+K30 -> 75602.15 | L47: =L46+L38+L35+L30 -> 3663.6 | M47: =M46+M38+M35+M30 -> 102126623.2 | N47: x | O47: x | P47: =M47-'2020 Раздел 2'!C25-'2021 Раздел 3'!C31-'2022 Раздел 4'!C19 -> 0 | Q47: =#REF!-'2020 Раздел 2'!C25-'2021 Раздел 3'!C31-'2022 Раздел 4'!C19 -> 
A48: Выборгский район
A49: Муниципальное образование Город Выборг
A50: =A45+1 -> 18 | B50: Г. Выборг, бул. Кутузова д. 16 | C50: 1940 | E50: кирпич | F50: 0.7142857143 | G50: 2 | H50: 2 | I50: 4340.7 | J50: 4221.3 | K50: 3037.2 | L50: 83 | M50: =SUMIF('2020 Раздел 2'!B:B,B50,'2020 Раздел 2'!C:C)+SUMIF('2021 Раздел 3'!B:B,B50,'2021 Раздел 3'!C:C)+SUMIF('2022 Раздел 4'!B:B,B50,'2022 Раздел 4'!C:C) -> 4925414.92 | N50: 2022-12-30 | O50: РО
A51: =A50+1 -> 19 | B51: Г. Выборг, бул. Кутузова, д. 33 | C51: 1940 | E51: кирпич | F51: 6 | G51: 1 | H51: 3 | I51: 2910.22 | J51: 2910.22 | K51: 2630.54 | L51: 80 | M51: =SUMIF('2020 Раздел 2'!B:B,B51,'2020 Раздел 2'!C:C)+SUMIF('2021 Раздел 3'!B:B,B51,'2021 Раздел 3'!C:C)+SUMIF('2022 Раздел 4'!B:B,B51,'2022 Раздел 4'!C:C) -> 2467427.48 | N51: 2022-12-30 | O51: РО
A52: =A51+1 -> 20 | B52: Г. Выборг, пер. Школьный, д. 3 | C52: 1940 | E52: кирпич | F52: 6 | G52: 1 | H52: 2 | I52: 3743.3 | J52: 3448.9 | K52: 2279.2 | L52: 75 | M52: =SUMIF('2020 Раздел 2'!B:B,B52,'2020 Раздел 2'!C:C)+SUMIF('2021 Раздел 3'!B:B,B52,'2021 Раздел 3'!C:C)+SUMIF('2022 Раздел 4'!B:B,B52,'2022 Раздел 4'!C:C) -> 2462707.46 | N52: 2022-12-30 | O52: РО
A53: 21 | B53: Г. Выборг, просп. Победы, д. 12 | C53: 1996 | E53: Кер.бет. | F53: 9 | G53: 4 | H53: 4 | I53: 7257.77 | J53: 7257.77 | K53: 6766.67 | L53: 297 | M53: =SUMIF('2020 Раздел 2'!B:B,B53,'2020 Раздел 2'!C:C)+SUMIF('2021 Раздел 3'!B:B,B53,'2021 Раздел 3'!C:C)+SUMIF('2022 Раздел 4'!B:B,B53,'2022 Раздел 4'!C:C) -> 9382024.46 | N53: 2022-12-30 | O53: РО
A54: 22 | B54: Г. Выборг, просп. Победы, д. 8 | C54: 1991 | E54: Кер.бет. | F54: 9 | G54: 1 | H54: 1 | I54: 2003.5 | J54: 2003.5 | K54: 2003.5 | L54: 88 | M54: =SUMIF('2020 Раздел 2'!B:B,B54,'2020 Раздел 2'!C:C)+SUMIF('2021 Раздел 3'!B:B,B54,'2021 Раздел 3'!C:C)+SUMIF('2022 Раздел 4'!B:B,B54,'2022 Раздел 4'!C:C) -> 2393012.12 | N54: 2022-12-30 | O54: РО
A55: =A54+1 -> 23 | B55: Г. Выборг, ул. Гагарина, д. 29 | C55: 1983 | E55: Кер.бет. | F55: 9 | G55: 3 | H55: 3 | I55: 6092.3 | J55: 6092.3 | K55: 5241.8 | L55: 286 | M55: =SUMIF('2020 Раздел 2'!B:B,B55,'2020 Раздел 2'!C:C)+SUMIF('2021 Раздел 3'!B:B,B55,'2021 Раздел 3'!C:C)+SUMIF('2022 Раздел 4'!B:B,B55,'2022 Раздел 4'!C:C) -> 6956641.83 | N55: 2022-12-30 | O55: РО
A56: 24 | B56: Г. Выборг, ул. Гагарина, д. 65 | C56: 1993 | E56: панель | F56: 9 | G56: 1 | H56: 1 | I56: 1989.5 | J56: 1989.5 | K56: 1836.8 | L56: 82 | M56: =SUMIF('2020 Раздел 2'!B:B,B56,'2020 Раздел 2'!C:C)+SUMIF('2021 Раздел 3'!B:B,B56,'2021 Раздел 3'!C:C)+SUMIF('2022 Раздел 4'!B:B,B56,'2022 Раздел 4'!C:C) -> 2380349.77 | N56: 2022-12-30 | O56: РО
A57: 25 | B57: Г. Выборг, ул. Гагарина, д. 69 | C57: 1994 | E57: панель | F57: 9 | G57: 2 | H57: 2 | I57: 4782 | J57: 4782 | K57: 3975.5 | L57: 184 | M57: =SUMIF('2020 Раздел 2'!B:B,B57,'2020 Раздел 2'!C:C)+SUMIF('2021 Раздел 3'!B:B,B57,'2021 Раздел 3'!C:C)+SUMIF('2022 Раздел 4'!B:B,B57,'2022 Раздел 4'!C:C) -> 5273424.86 | N57: 2022-12-30 | O57: РО
A58: 26 | B58: Г. Выборг, ул. Крепостная, д. 39а | C58: 1993 | E58: кирпич | F58: 9 | G58: 1 | H58: 1 | I58: 1886.9 | J58: 1886.9 | K58: 1876 | L58: 42 | M58: =SUMIF('2020 Раздел 2'!B:B,B58,'2020 Раздел 2'!C:C)+SUMIF('2021 Раздел 3'!B:B,B58,'2021 Раздел 3'!C:C)+SUMIF('2022 Раздел 4'!B:B,B58,'2022 Раздел 4'!C:C) -> 2358346.51 | N58: 2022-12-30 | O58: РО
A59: 27 | B59: Г. Выборг, ул. Офицерская, д. 12 | C59: 1993 | E59: Кер.блок | F59: 9 | G59: 1 | H59: 1 | I59: 1561.5 | J59: 1561.5 | K59: 1422.9 | L59: 84 | M59: =SUMIF('2020 Раздел 2'!B:B,B59,'2020 Раздел 2'!C:C)+SUMIF('2021 Раздел 3'!B:B,B59,'2021 Раздел 3'!C:C)+SUMIF('2022 Раздел 4'!B:B,B59,'2022 Раздел 4'!C:C) -> 2430153.92 | N59: 2022-12-30 | O59: РО
A60: 28 | B60: Г. Выборг, ул. Офицерская, д. 14 | C60: 1993 | E60: Кер.блок | F60: 9 | G60: 1 | H60: 1 | I60: 2421.3 | J60: 2421.3 | K60: 2163.8 | L60: 105 | M60: =SUMIF('2020 Раздел 2'!B:B,B60,'2020 Раздел 2'!C:C)+SUMIF('2021 Раздел 3'!B:B,B60,'2021 Раздел 3'!C:C)+SUMIF('2022 Раздел 4'!B:B,B60,'2022 Раздел 4'!C:C) -> 2431265.26 | N60: 2022-12-30 | O60: РО
A61: Итого по муниципальному образованию | C61: x | D61: x | E61: x | F61: x | G61: =SUM(G50:G60) -> 18 | H61: x | I61: =SUM(I50:I60) -> 38988.99 | J61: 38575.19 | K61: 33233.91 | L61: 1406 | M61: 43460768.59 | N61: x | O61: x | P61: =M61-'2020 Раздел 2'!C36-'2021 Раздел 3'!C36-'2022 Раздел 4'!C25 -> 0 | Q61: =#REF!-'2020 Раздел 2'!C36-'2021 Раздел 3'!C41-'2022 Раздел 4'!C30 -> 
A62: Муниципальное образование Полянское сельское поселение
A63: =A60+1 -> 29 | B63: пос. Каменка, ул. Гвардейская, д. 75 | C63: 1984 | E63: кирпич | F63: 9 | G63: 1 | H63: 1 | I63: 3416.1 | J63: 3416.1 | K63: 104.8 | L63: 93 | M63: =SUMIF('2020 Раздел 2'!B:B,B63,'2020 Раздел 2'!C:C)+SUMIF('2021 Раздел 3'!B:B,B63,'2021 Раздел 3'!C:C)+SUMIF('2022 Раздел 4'!B:B,B63,'2022 Раздел 4'!C:C) -> 2727354.76 | N63: 2022-12-30 | O63: РО
A64: =A63+1 -> 30 | B64: пос. Каменка, ул. Гвардейская, д. 77 | C64: 1984 | E64: кирпич | F64: 9 | G64: 1 | H64: 1 | I64: 3034.7 | J64: 3034.7 | K64: 89.5 | L64: 79 | M64: =SUMIF('2020 Раздел 2'!B:B,B64,'2020 Раздел 2'!C:C)+SUMIF('2021 Раздел 3'!B:B,B64,'2021 Раздел 3'!C:C)+SUMIF('2022 Раздел 4'!B:B,B64,'2022 Раздел 4'!C:C) -> 2727354.76 | N64: 2022-12-30 | O64: РО
A65: Итого по муниципальному образованию | C65: x | D65: x | E65: x | F65: x | G65: =SUM(G63:G64) -> 2 | H65: x | I65: =SUM(I63:I64) -> 6450.8 | J65: =SUM(J63:J64) -> 6450.8 | K65: =SUM(K63:K64) -> 194.3 | L65: =SUM(L63:L64) -> 172 | M65: =SUM(M63:M64) -> 5454709.52
A66: Муниципальное образование Светогорское городское поселение
A67: =A64+1 -> 31 | B67: Г. Светогорск, ул. Красноармейская, д. 26 | C67: 1984 | E67: панель | F67: 9 | G67: 3 | H67: 3 | I67: 6751.6 | J67: 6751.6 | K67: 4709.1 | L67: 217 | M67: =SUMIF('2020 Раздел 2'!B:B,B67,'2020 Раздел 2'!C:C)+SUMIF('2021 Раздел 3'!B:B,B67,'2021 Раздел 3'!C:C)+SUMIF('2022 Раздел 4'!B:B,B67,'2022 Раздел 4'!C:C) -> 5716998.15 | N67: 2022-12-30 | O67: РО
A68: =A67+1 -> 32 | B68: Г. Светогорск, ул. Красноармейская, д. 32 | C68: 1983 | E68: панель | F68: 9 | G68: 5 | H68: 6 | I68: 9392.4 | J68: 9392.4 | K68: 9392.4 | L68: 411 | M68: =SUMIF('2020 Раздел 2'!B:B,B68,'2020 Раздел 2'!C:C)+SUMIF('2021 Раздел 3'!B:B,B68,'2021 Раздел 3'!C:C)+SUMIF('2022 Раздел 4'!B:B,B68,'2022 Раздел 4'!C:C) -> 9590476.86 | N68: 2022-12-30 | O68: РО
A69: =A68+1 -> 33 | B69: Г. Светогорск, ул. Красноармейская, д. 8 | C69: 1984 | E69: панель | F69: 9 | G69: 3 | H69: 3 | I69: 4683.9 | J69: 4683.9 | K69: 4650.5 | L69: 171 | M69: =SUMIF('2020 Раздел 2'!B:B,B69,'2020 Раздел 2'!C:C)+SUMIF('2021 Раздел 3'!B:B,B69,'2021 Раздел 3'!C:C)+SUMIF('2022 Раздел 4'!B:B,B69,'2022 Раздел 4'!C:C) -> 5696067.8 | N69: 2022-12-30 | O69: РО
A70: Итого по муниципальному образованию | C70: x | D70: x | E70: x | F70: x | G70: =SUM(G67:G69) -> 11 | H70: x | I70: =SUM(I67:I69) -> 20827.9 | J70: 20827.9 | K70: 18752 | L70: 799 | M70: =SUM(M67:M69) -> 21003542.81 | N70: x | O70: x | Q70: =#REF!-'2020 Раздел 2'!C42 -> 
A71: Муниципальное образование Советское городское поселение
A72: =A69+1 -> 34 | B72: Г.п. Советский, ул. Садовая, д. 46 | C72: 1986 | E72: блочный | F72: 9 | G72: 1 | H72: 1 | I72: 4024.4 | J72: 4024.4 | K72: 3621.96 | L72: 122 | M72: =SUMIF('2020 Раздел 2'!B:B,B72,'2020 Раздел 2'!C:C)+SUMIF('2021 Раздел 3'!B:B,B72,'2021 Раздел 3'!C:C)+SUMIF('2022 Раздел 4'!B:B,B72,'2022 Раздел 4'!C:C) -> 1902539.21 | N72: 2022-12-30 | O72: РО
A73: Итого по муниципальному образованию | C73: x | D73: x | E73: x | F73: x | G73: 1 | H73: x | I73: =SUM(I72) -> 4024.4 | J73: =SUM(J72) -> 4024.4 | K73: =SUM(K72) -> 3621.96 | L73: =SUM(L72) -> 122 | M73: =M72 -> 1902539.21 | N73: x | O73: x
A74: Итого по Выборгскому району | C74: x | D74: x | E74: x | F74: x | G74: =G73+G70+G65+G61 -> 32 | H74: x | I74: =I73+I70+I65+I61 -> 70292.09 | J74: =J73+J70+J65+J61 -> 69878.29 | K74: =K73+K70+K65+K61 -> 55802.17 | L74: =L73+L70+L65+L61 -> 2499 | M74: =M73+M70+M65+M61 -> 71821560.13 | N74: x | O74: x | P74: =M74-'2020 Раздел 2'!C45-'2021 Раздел 3'!C41-'2022 Раздел 4'!C30 -> 0 | Q74: =#REF!-'2020 Раздел 2'!C45-'2021 Раздел 3'!C41-'2022 Раздел 4'!C30 ->  | V74: =M74-'2020 Раздел 2'!C45-'2021 Раздел 3'!C41-'2022 Раздел 4'!C30 -> 0
A75: Гатчинский муниципальный район
A76: Муниципальное образование Город Гатчина
A77: =A72+1 -> 35 | B77: Г. Гатчина, просп. 25 Октября, д. 59 | C77: 1993 | E77: кирпич | F77: 6 | G77: 3 | H77: 3 | I77: 15895.7 | J77: 7164.3 | K77: 6932.7 | L77: 239 | M77: =SUMIF('2020 Раздел 2'!B:B,B77,'2020 Раздел 2'!C:C)+SUMIF('2021 Раздел 3'!B:B,B77,'2021 Раздел 3'!C:C)+SUMIF('2022 Раздел 4'!B:B,B77,'2022 Раздел 4'!C:C) -> 7366283.4 | N77: 2022-12-30 | O77: РО
A78: =A77+1 -> 36 | B78: Г. Гатчина, ул. Красных Военлётов, д. 9 | C78: 1990 | E78: панельный | F78: 9 | H78: 4 | I78: 12490.5 | J78: 8071.5 | K78: 7355.2 | L78: 387 | M78: =SUMIF('2020 Раздел 2'!B:B,B78,'2020 Раздел 2'!C:C)+SUMIF('2021 Раздел 3'!B:B,B78,'2021 Раздел 3'!C:C)+SUMIF('2022 Раздел 4'!B:B,B78,'2022 Раздел 4'!C:C) -> 20150 | N78: 2022-12-30 | O78: РО
A79: =A78+1 -> 37 | B79: Г. Гатчина, ул. Рощинская, д. 11, кор. 1 | C79: 1993 | E79: кирпич | F79: 8 | G79: 1 | H79: 1 | I79: 3301.1 | J79: 1510.1 | K79: 1328.7 | L79: 92 | M79: =SUMIF('2020 Раздел 2'!B:B,B79,'2020 Раздел 2'!C:C)+SUMIF('2021 Раздел 3'!B:B,B79,'2021 Раздел 3'!C:C)+SUMIF('2022 Раздел 4'!B:B,B79,'2022 Раздел 4'!C:C) -> 2636712.43 | N79: 2022-12-30 | O79: РО
A80: 38 | B80: Г. Гатчина, ул. Рощинская, д. 13А | C80: 1991 | E80: кирпич | F80: 5 | G80: 2 | H80: 2 | I80: 3831.4 | J80: 1743.9 | K80: 2237.8 | L80: 95 | M80: =SUMIF('2020 Раздел 2'!B:B,B80,'2020 Раздел 2'!C:C)+SUMIF('2021 Раздел 3'!B:B,B80,'2021 Раздел 3'!C:C)+SUMIF('2022 Раздел 4'!B:B,B80,'2022 Раздел 4'!C:C) -> 4910855.6 | N80: 2022-12-30 | O80: РО
A81: 39 | B81: Г. Гатчина, ул. Рощинская, д. 19 | C81: 1994 | E81: кирпич | F81: 7 | G81: 4 | H81: 5 | I81: 12030.6 | J81: 11199.2 | K81: 8436.8 | L81: 298 | M81: =SUMIF('2020 Раздел 2'!B:B,B81,'2020 Раздел 2'!C:C)+SUMIF('2021 Раздел 3'!B:B,B81,'2021 Раздел 3'!C:C)+SUMIF('2022 Раздел 4'!B:B,B81,'2022 Раздел 4'!C:C) -> 10063302.02 | N81: 2022-12-30 | O81: РО
A82: 40 | B82: Г. Гатчина, ул. Рощинская, д. 3А | C82: 1993 | E82: панельный | F82: 9 | G82: 2 | H82: 2 | I82: 6130.2 | J82: 4094.2 | K82: 3859.6 | L82: 95 | M82: =SUMIF('2020 Раздел 2'!B:B,B82,'2020 Раздел 2'!C:C)+SUMIF('2021 Раздел 3'!B:B,B82,'2021 Раздел 3'!C:C)+SUMIF('2022 Раздел 4'!B:B,B82,'2022 Раздел 4'!C:C) -> 5273424.86 | N82: 2022-12-30 | O82: РО
A83: 41 | B83: Г. Гатчина, ул. Рощинская, д. 9Г | C83: 1993 | E83: панельный | F83: 9 | G83: 2 | H83: 2 | I83: 6222 | J83: 4056.6 | K83: 3960.4 | L83: 194 | M83: =SUMIF('2020 Раздел 2'!B:B,B83,'2020 Раздел 2'!C:C)+SUMIF('2021 Раздел 3'!B:B,B83,'2021 Раздел 3'!C:C)+SUMIF('2022 Раздел 4'!B:B,B83,'2022 Раздел 4'!C:C) -> 5248474.37 | N83: 2022-12-30 | O83: РО
A84: 42 | B84: Г. Гатчина, ул. Хохлова, д. 2 | C84: 1995 | E84: кирпич | F84: 7 | G84: 3 | H84: 3 | I84: 5575.2 | J84: 3438.6 | K84: 3109.3 | L84: 196 | M84: =SUMIF('2020 Раздел 2'!B:B,B84,'2020 Раздел 2'!C:C)+SUMIF('2021 Раздел 3'!B:B,B84,'2021 Раздел 3'!C:C)+SUMIF('2022 Раздел 4'!B:B,B84,'2022 Раздел 4'!C:C) -> 7036518.3 | N84: 2022-12-30 | O84: РО
A85: Итого по муниципальному образованию | C85: x | D85: x | E85: x | F85: x | G85: =SUM(G77:G84) -> 17 | H85: x | I85: =SUM(I77:I84) -> 65476.7 | J85: =SUM(J77:J84) -> 41278.4 | K85: =SUM(K77:K84) -> 37220.5 | L85: =SUM(L77:L84) -> 1596 | M85: =SUM(M77:M84) -> 42555720.98 | N85: x | O85: x
A86: Итого по Гатчинскому муниципальному району | C86: x | D86: x | E86: x | F86: x | G86: =G85 -> 17 | H86: x | I86: =SUM(I85) -> 65476.7 | J86: =SUM(J85) -> 41278.4 | K86: =SUM(K85) -> 37220.5 | L86: =SUM(L85) -> 1596 | M86: =M85 -> 42555720.98 | N86: x | O86: x | P86: =M86-'2020 Раздел 2'!C53-'2021 Раздел 3'!C50-'2022 Раздел 4'!C38 -> 0 | Q86: =#REF!-'2020 Раздел 2'!C53-'2021 Раздел 3'!C50-'2022 Раздел 4'!C38 -> 
A87: Киришский муниципальный район
A88: Муниципальное образование Киришское городское поселение
A89: =A84+1 -> 43 | B89: Г. Кириши, бул. Плавницкий, д. 16 | C89: 1992 | E89: панель | F89: 9 | G89: 1 | H89: 1 | I89: 2398.8 | J89: 2121.8 | K89: 2121.8 | L89: 93 | M89: =SUMIF('2020 Раздел 2'!B:B,B89,'2020 Раздел 2'!C:C)+SUMIF('2021 Раздел 3'!B:B,B89,'2021 Раздел 3'!C:C)+SUMIF('2022 Раздел 4'!B:B,B89,'2022 Раздел 4'!C:C) -> 2778120.42 | N89: 2022-12-30 | O89: РО | P89: =M89-'2020 Раздел 2'!C56 -> 0
A90: =A89+1 -> 44 | B90: Г. Кириши, бул. Плавницкий, д. 36 | C90: 1997 | E90: панель | F90: 9 | G90: 1 | H90: 1 | I90: 3356 | J90: 3000 | K90: 3000 | L90: 101 | M90: =SUMIF('2020 Раздел 2'!B:B,B90,'2020 Раздел 2'!C:C)+SUMIF('2021 Раздел 3'!B:B,B90,'2021 Раздел 3'!C:C)+SUMIF('2022 Раздел 4'!B:B,B90,'2022 Раздел 4'!C:C) -> 2636712.43 | N90: 2022-12-30 | O90: РО | P90: =M90-'2021 Раздел 3'!C53-'2022 Раздел 4'!C41 -> 0
A91: 45 | B91: Г. Кириши, пер. Березовый, д. 10 | C91: 1996 | E91: панель | F91: 9 | G91: 1 | H91: 1 | I91: 2631.1 | J91: 2344.1 | K91: 2344.1 | L91: 101 | M91: =SUMIF('2020 Раздел 2'!B:B,B91,'2020 Раздел 2'!C:C)+SUMIF('2021 Раздел 3'!B:B,B91,'2021 Раздел 3'!C:C)+SUMIF('2022 Раздел 4'!B:B,B91,'2022 Раздел 4'!C:C) -> 2432808.43 | N91: 2022-12-30 | O91: РО
A92: 46 | B92: Г. Кириши, просп. Героев, д. 15 | C92: 1994 | E92: панель | F92: 9 | G92: 1 | H92: 1 | I92: 2426.1 | J92: 2147 | K92: 2147 | L92: 71 | M92: =SUMIF('2020 Раздел 2'!B:B,B92,'2020 Раздел 2'!C:C)+SUMIF('2021 Раздел 3'!B:B,B92,'2021 Раздел 3'!C:C)+SUMIF('2022 Раздел 4'!B:B,B92,'2022 Раздел 4'!C:C) -> 2780404.62 | N92: 2022-12-30 | O92: РО
A93: 47 | B93: Г. Кириши, просп. Героев, д. 17 | C93: 1993 | E93: панель | F93: 9 | G93: 2 | H93: 2 | I93: 5223.7 | J93: 4642.3 | K93: 4642.3 | L93: 159 | M93: =SUMIF('2020 Раздел 2'!B:B,B93,'2020 Раздел 2'!C:C)+SUMIF('2021 Раздел 3'!B:B,B93,'2021 Раздел 3'!C:C)+SUMIF('2022 Раздел 4'!B:B,B93,'2022 Раздел 4'!C:C) -> 5522841.44 | N93: 2022-12-30 | O93: РО
A94: 48 | B94: Г. Кириши, просп. Ленина, д. 40 | C94: 1991 | E94: панель/кирпич | F94: 5/7 | G94: 1 | H94: 5 | I94: 5647 | J94: 4916.8 | K94: 3992 | L94: 176 | M94: =SUMIF('2020 Раздел 2'!B:B,B94,'2020 Раздел 2'!C:C)+SUMIF('2021 Раздел 3'!B:B,B94,'2021 Раздел 3'!C:C)+SUMIF('2022 Раздел 4'!B:B,B94,'2022 Раздел 4'!C:C) -> 2546070.1 | N94: 2022-12-30 | O94: РО
A95: 49 | B95: Г. Кириши, просп. Ленина, д. 9 | C95: 1964 | E95: кирпич | F95: 9 | G95: 1 | H95: 1 | I95: 2289.91 | J95: 1995.59 | K95: 1940.69 | L95: 73 | M95: =SUMIF('2020 Раздел 2'!B:B,B95,'2020 Раздел 2'!C:C)+SUMIF('2021 Раздел 3'!B:B,B95,'2021 Раздел 3'!C:C)+SUMIF('2022 Раздел 4'!B:B,B95,'2022 Раздел 4'!C:C) -> 2727354.76 | N95: 2022-12-30 | O95: РО
A96: 50 | B96: Г. Кириши, ул. Декабристов Бестужевых, д. 16 | C96: 1990 | E96: панель | F96: 9 | G96: 1 | H96: 1 | I96: 3261.7 | J96: 2702.6 | K96: 2702.6 | L96: 108 | M96: =SUMIF('2020 Раздел 2'!B:B,B96,'2020 Раздел 2'!C:C)+SUMIF('2021 Раздел 3'!B:B,B96,'2021 Раздел 3'!C:C)+SUMIF('2022 Раздел 4'!B:B,B96,'2022 Раздел 4'!C:C) -> 2777552.78 | N96: 2022-12-30 | O96: РО
A97: 51 | B97: Г. Кириши, ул. Строителей, д. 2 | C97: 1971 | E97: кирпич | F97: 9 | G97: 1 | H97: 5 | I97: 15493.65 | J97: 13099.2 | K97: 11188 | L97: 519 | M97: =SUMIF('2020 Раздел 2'!B:B,B97,'2020 Раздел 2'!C:C)+SUMIF('2021 Раздел 3'!B:B,B97,'2021 Раздел 3'!C:C)+SUMIF('2022 Раздел 4'!B:B,B97,'2022 Раздел 4'!C:C) -> 2727354.76 | N97: 2022-12-30 | O97: РО
A98: 52 | B98: Г. Кириши, ул. Строителей, д. 26 | C98: 1974 | E98: кирпич | F98: 9 | G98: 1 | H98: 5 | I98: 15470.37 | J98: 13282.4 | K98: 11176.5 | L98: 466 | M98: =SUMIF('2020 Раздел 2'!B:B,B98,'2020 Раздел 2'!C:C)+SUMIF('2021 Раздел 3'!B:B,B98,'2021 Раздел 3'!C:C)+SUMIF('2022 Раздел 4'!B:B,B98,'2022 Раздел 4'!C:C) -> 2727354.76 | N98: 2022-12-30 | O98: РО
A99: 53 | B99: Г. Кириши, ул. Строителей, д. 28 | C99: 1993 | E99: панель | F99: 9 | G99: 1 | H99: 1 | I99: 2749.3 | J99: 2473.7 | K99: 2411.3 | L99: 90 | M99: =SUMIF('2020 Раздел 2'!B:B,B99,'2020 Раздел 2'!C:C)+SUMIF('2021 Раздел 3'!B:B,B99,'2021 Раздел 3'!C:C)+SUMIF('2022 Раздел 4'!B:B,B99,'2022 Раздел 4'!C:C) -> 2778665.3 | N99: 2022-12-30 | O99: РО
A100: 54 | B100: Г. Кириши, ул. Строителей, д. 30 | C100: 1991 | E100: панель | F100: 9 | G100: 3 | H100: 3 | I100: 7631.2 | J100: 6837.2 | K100: 6765.7 | L100: 259 | M100: =SUMIF('2020 Раздел 2'!B:B,B100,'2020 Раздел 2'!C:C)+SUMIF('2021 Раздел 3'!B:B,B100,'2021 Раздел 3'!C:C)+SUMIF('2022 Раздел 4'!B:B,B100,'2022 Раздел 4'!C:C) -> 8374976.69 | N100: 2022-12-30 | O100: РО
A101: 55 | B101: Г. Кириши, ул. Строителей, д. 30А | C101: 1996 | E101: кирпич | F101: 9 | G101: 1 | H101: 1 | I101: 2873.8 | J101: 2722 | K101: 2570.2 | L101: 102 | M101: =SUMIF('2020 Раздел 2'!B:B,B101,'2020 Раздел 2'!C:C)+SUMIF('2021 Раздел 3'!B:B,B101,'2021 Раздел 3'!C:C)+SUMIF('2022 Раздел 4'!B:B,B101,'2022 Раздел 4'!C:C) -> 2727354.76 | N101: 2022-12-30 | O101: РО
A102: 56 | B102: Г. Кириши, ул. Строителей, д. 46 | C102: 1991 | E102: панель | F102: 9 | G102: 4 | H102: 4 | I102: 9023.5 | J102: 7928.7 | K102: 7928.7 | L102: 334 | M102: =SUMIF('2020 Раздел 2'!B:B,B102,'2020 Раздел 2'!C:C)+SUMIF('2021 Раздел 3'!B:B,B102,'2021 Раздел 3'!C:C)+SUMIF('2022 Раздел 4'!B:B,B102,'2022 Раздел 4'!C:C) -> 11159997.44 | N102: 2022-12-30 | O102: РО
A103: 57 | B103: Г. Кириши, ул. Энергетиков, д. 40 | C103: 1994 | E103: панель | F103: 9 | G103: 1 | H103: 1 | I103: 2724.9 | J103: 2445.3 | K103: 2445.3 | L103: 87 | M103: =SUMIF('2020 Раздел 2'!B:B,B103,'2020 Раздел 2'!C:C)+SUMIF('2021 Раздел 3'!B:B,B103,'2021 Раздел 3'!C:C)+SUMIF('2022 Раздел 4'!B:B,B103,'2022 Раздел 4'!C:C) -> 2777685.76 | N103: 2022-12-30 | O103: РО
A104: Итого по муниципальному образованию | C104: x | D104: x | E104: x | F104: x | G104: =SUM(G89:G103) -> 21 | H104: x | I104: =SUM(I89:I103) -> 83201.03 | J104: 72658.69 | K104: 67376.19 | L104: 2739 | M104: 57475254.45 | N104: x | O104: x
A105: Итого по Киришскому муниципальному району | C105: x | D105: x | E105: x | F105: x | G105: =G104 -> 21 | H105: x | I105: =SUM(I104) -> 83201.03 | J105: =SUM(J104) -> 72658.69 | K105: =SUM(K104) -> 67376.19 | L105: =SUM(L104) -> 2739 | M105: =M104 -> 57475254.45 | N105: x | O105: x | P105: =M105-'2020 Раздел 2'!C66-'2021 Раздел 3'!C60-'2022 Раздел 4'!C48 -> 0 | Q105: =#REF!-'2020 Раздел 2'!C66-'2021 Раздел 3'!#REF!-'2022 Раздел 4'!C48 -> 
A106: Кировский муниципальный район
A107: Муниципальное образование Кировск
A108: =A103+1 -> 58 | B108: Г. Кировск, ул. Молодежная, д. 3 | C108: 1994 | E108: панели | F108: 9 | G108: 1 | H108: 1 | I108: 2073.9 | J108: 2073.9 | K108: 2073.9 | L108: 102 | M108: =SUMIF('2020 Раздел 2'!B:B,B108,'2020 Раздел 2'!C:C)+SUMIF('2021 Раздел 3'!B:B,B108,'2021 Раздел 3'!C:C)+SUMIF('2022 Раздел 4'!B:B,B108,'2022 Раздел 4'!C:C) -> 2520110.76 | N108: 2022-12-30 | O108: РО
A109: =A108+1 -> 59 | B109: Г. Кировск, ул. Молодежная, д. 5 | C109: 1993 | E109: панели | F109: 9 | G109: 1 | H109: 1 | I109: 2127.07 | J109: 2127.07 | K109: 2127.07 | L109: 85 | M109: =SUMIF('2020 Раздел 2'!B:B,B109,'2020 Раздел 2'!C:C)+SUMIF('2021 Раздел 3'!B:B,B109,'2021 Раздел 3'!C:C)+SUMIF('2022 Раздел 4'!B:B,B109,'2022 Раздел 4'!C:C) -> 2520110.76 | N109: 2022-12-30 | O109: РО
A110: Итого по муниципальному образованию | C110: x | D110: x | E110: x | F110: x | G110: =SUM(G108:G109) -> 2 | H110: x | I110: =SUM(I108:I109) -> 4200.97 | J110: =SUM(J108:J109) -> 4200.97 | K110: =SUM(K108:K109) -> 4200.97 | L110: =SUM(L108:L109) -> 187 | M110: =SUM(M108:M109) -> 5040221.52 | N110: x | O110: x
A111: Муниципальное образование Отрадненское городское поселение
A112: =A109+1 -> 60 | B112: Г. Отрадное, ул. Гагарина, д. 16 | C112: 1991 | E112: ж/б панели | F112: 9 | G112: 2 | H112: 2 | I112: 6265.86 | J112: 4148.36 | K112: 4148.36 | L112: 163 | M112: =SUMIF('2020 Раздел 2'!B:B,B112,'2020 Раздел 2'!C:C)+SUMIF('2021 Раздел 3'!B:B,B112,'2021 Раздел 3'!C:C)+SUMIF('2022 Раздел 4'!B:B,B112,'2022 Раздел 4'!C:C) -> 5472380.26 | N112: 2022-12-30 | O112: РО
A113: =A112+1 -> 61 | B113: Г. Отрадное, ул. Лесная, д. 8 | C113: 1987 | E113: панель | F113: 9 | G113: 5 | H113: 5 | I113: 11621 | J113: 10099.13 | K113: 9404.99 | L113: 456 | M113: =SUMIF('2020 Раздел 2'!B:B,B113,'2020 Раздел 2'!C:C)+SUMIF('2021 Раздел 3'!B:B,B113,'2021 Раздел 3'!C:C)+SUMIF('2022 Раздел 4'!B:B,B113,'2022 Раздел 4'!C:C) -> 13680950.65 | N113: 2022-12-30 | O113: РО
A114: =A113+1 -> 62 | B114: Г. Отрадное, ул. Железнодорожная, д. 13 | C114: 1991 | E114: кирпич | F114: 9 | G114: 2 | H114: 2 | I114: 6262.84 | J114: 6262.84 | K114: 4134.32 | L114: 183 | M114: =SUMIF('2020 Раздел 2'!B:B,B114,'2020 Раздел 2'!C:C)+SUMIF('2021 Раздел 3'!B:B,B114,'2021 Раздел 3'!C:C)+SUMIF('2022 Раздел 4'!B:B,B114,'2022 Раздел 4'!C:C) -> 5208770.92 | N114: 2022-12-30 | O114: РО
A115: 63 | B115: Г. Отрадное, ул. Зарубина, д. 15 | C115: 1986 | E115: кирпич | F115: 9 | G115: 1 | H115: 1 | I115: 1900 | J115: 1900 | K115: 2573.98 | L115: 132 | M115: =SUMIF('2020 Раздел 2'!B:B,B115,'2020 Раздел 2'!C:C)+SUMIF('2021 Раздел 3'!B:B,B115,'2021 Раздел 3'!C:C)+SUMIF('2022 Раздел 4'!B:B,B115,'2022 Раздел 4'!C:C) -> 2604385.46 | N115: 2022-12-30 | O115: РО
A116: =A115+1 -> 64 | B116: Г. Отрадное, ул. Лесная, д. 10 | C116: 1990 | E116: панель | F116: 9 | G116: 1 | H116: 1 | I116: 3066.28 | J116: 3066.28 | K116: 1995.12 | L116: 83 | M116: =SUMIF('2020 Раздел 2'!B:B,B116,'2020 Раздел 2'!C:C)+SUMIF('2021 Раздел 3'!B:B,B116,'2021 Раздел 3'!C:C)+SUMIF('2022 Раздел 4'!B:B,B116,'2022 Раздел 4'!C:C) -> 2604385.46 | N116: 2022-12-30 | O116: РО
A117: =A116+1 -> 65 | B117: Г. Отрадное, ул. Центральная,д.17 | C117: 1995 | E117: панель | F117: 9 | G117: 4 | H117: 4 | I117: 12228.58 | J117: 12228.58 | K117: 8004.95 | L117: 276 | M117: =SUMIF('2020 Раздел 2'!B:B,B117,'2020 Раздел 2'!C:C)+SUMIF('2021 Раздел 3'!B:B,B117,'2021 Раздел 3'!C:C)+SUMIF('2022 Раздел 4'!B:B,B117,'2022 Раздел 4'!C:C) -> 10417541.84 | N117: 2022-12-30 | O117: РО
A118: =A117+1 -> 66 | B118: Г. Отрадное, ул. Щурова, д.4 | C118: 1988 | E118: панель | F118: 9 | G118: 2 | H118: 2 | I118: 6155.35 | J118: 6155.35 | K118: 4039.83 | L118: 176 | M118: =SUMIF('2020 Раздел 2'!B:B,B118,'2020 Раздел 2'!C:C)+SUMIF('2021 Раздел 3'!B:B,B118,'2021 Раздел 3'!C:C)+SUMIF('2022 Раздел 4'!B:B,B118,'2022 Раздел 4'!C:C) -> 5208770.92 | N118: 2022-12-30 | O118: РО
A119: Итого по муниципальному образованию | C119: x | D119: x | E119: x | F119: x | G119: =SUM(G112:G118) -> 17 | H119: x | I119: =SUM(I112:I118) -> 47499.91 | J119: =SUM(J112:J118) -> 43860.54 | K119: =SUM(K112:K118) -> 34301.55 | L119: =SUM(L112:L118) -> 1469 | M119: =SUM(M112:M118) -> 45197185.51 | N119: x | O119: x | P119: =M119-'2020 Раздел 2'!C78-'2021 Раздел 3'!C72 -> 19153330.91
A120: Итого по Кировскому муниципальному району | C120: x | D120: x | E120: x | F120: x | G120: =G110+G119 -> 19 | H120: x | I120: =I110+I119 -> 51700.88 | J120: =J110+J119 -> 48061.51 | K120: =K110+K119 -> 38502.52 | L120: =L110+L119 -> 1656 | M120: =M110+M119 -> 50237407.03 | N120: x | O120: x | P120: =M120-'2020 Раздел 2'!C79-'2021 Раздел 3'!C73 -> 19153330.91 | Q120: =#REF!-'2020 Раздел 2'!C79-'2021 Раздел 3'!C65 -> 
A121: Ломоносовский муниципальный район
A122: Муниципальное образование Аннинское городское поселение
A123: =A118+1 -> 67 | B123: Г.п. Новоселье, д. 7 | C123: 2002 | F123: 8 | G123: 4 | I123: 8904.3 | J123: 8904.3 | K123: 4472.9 | L123: 159 | M123: =SUMIF('2020 Раздел 2'!B:B,B123,'2020 Раздел 2'!C:C)+SUMIF('2021 Раздел 3'!B:B,B123,'2021 Раздел 3'!C:C)+SUMIF('2022 Раздел 4'!B:B,B123,'2022 Раздел 4'!C:C) -> 10546849.72 | N123: 2022-12-30 | O123: РО
A124: Итого по муниципальному образованию | C124: x | D124: x | E124: x | F124: x | G124: =G123 -> 4 | H124: x | I124: =I123 -> 8904.3 | J124: =SUM(J123) -> 8904.3 | K124: =SUM(K123) -> 4472.9 | L124: =SUM(L123) -> 159 | M124: =M123 -> 10546849.72 | N124: x | O124: x
A125: Итого по Ломоносовскому муниципальному району | C125: x | D125: x | E125: x | F125: x | G125: =G124 -> 4 | H125: x | I125: 8904.3 | J125: 8904.3 | K125: 4472.9 | L125: 159 | M125: =M124 -> 10546849.72 | N125: x | O125: x | Q125: =#REF!-'2020 Раздел 2'!#REF! -> 
A126: Лужский муниципальный район
A127: Муниципальное образование Лужское городское поселение
A128: =A123+1 -> 68 | B128: Г. Луга, просп. Володарского, д. 26 | C128: 1991 | E128: панель | F128: 9 | G128: 2 | H128: 2 | I128: 4870.2 | J128: 3988.5 | K128: 2974.7 | L128: 168 | M128: =SUMIF('2020 Раздел 2'!B:B,B128,'2020 Раздел 2'!C:C)+SUMIF('2021 Раздел 3'!B:B,B128,'2021 Раздел 3'!C:C)+SUMIF('2022 Раздел 4'!B:B,B128,'2022 Раздел 4'!C:C) -> 3245119.33 | N128: 2022-12-30 | O128: РО
A129: =A128+1 -> 69 | B129: Г. Луга, просп. Урицкого, д. 101 | C129: 1993 | E129: панель | F129: 9 | G129: 1 | H129: 1 | I129: 2745.8 | J129: 2014.5 | K129: 1974.3 | L129: 59 | M129: =SUMIF('2020 Раздел 2'!B:B,B129,'2020 Раздел 2'!C:C)+SUMIF('2021 Раздел 3'!B:B,B129,'2021 Раздел 3'!C:C)+SUMIF('2022 Раздел 4'!B:B,B129,'2022 Раздел 4'!C:C) -> 2432808.43 | N129: 2022-12-30 | O129: РО
A130: 70 | B130: Г. Луга, просп. Урицкого, д. 99 | C130: 1993 | E130: панель | F130: 9 | G130: 1 | H130: 1 | I130: 2737.5 | J130: 2006.2 | K130: 1877.9 | L130: 81 | M130: =SUMIF('2020 Раздел 2'!B:B,B130,'2020 Раздел 2'!C:C)+SUMIF('2021 Раздел 3'!B:B,B130,'2021 Раздел 3'!C:C)+SUMIF('2022 Раздел 4'!B:B,B130,'2022 Раздел 4'!C:C) -> 2432808.43 | N130: 2022-12-30 | O130: РО
A131: 71 | B131: Г. Луга, ул. Миккели, д. 1, кор. 1 | C131: 1993 | E131: панель | F131: 5/9 | G131: 1 | H131: 5 | I131: 7582 | J131: 5566 | K131: 5357.5 | L131: 202 | M131: =SUMIF('2020 Раздел 2'!B:B,B131,'2020 Раздел 2'!C:C)+SUMIF('2021 Раздел 3'!B:B,B131,'2021 Раздел 3'!C:C)+SUMIF('2022 Раздел 4'!B:B,B131,'2022 Раздел 4'!C:C) -> 2565435.69 | N131: 2022-12-30 | O131: РО
A132: 72 | B132: Г. Луга, ул. Миккели, д. 1, кор. 2 | C132: 1993 | E132: ж/б панели | F132: 9 | G132: 1 | H132: 4 | I132: 7586.9 | J132: 5570.5 | K132: 5570.5 | L132: 168 | M132: =SUMIF('2020 Раздел 2'!B:B,B132,'2020 Раздел 2'!C:C)+SUMIF('2021 Раздел 3'!B:B,B132,'2021 Раздел 3'!C:C)+SUMIF('2022 Раздел 4'!B:B,B132,'2022 Раздел 4'!C:C) -> 2645029.24 | N132: 2022-12-30 | O132: РО
A133: 73 | B133: Г. Луга, ул. Миккели, д. 1, кор. 3 | C133: 1994 | E133: панель | F133: 5/9 | G133: 1 | H133: 5 | I133: 7571.2 | J133: 5555.2 | K133: 5201.3 | L133: 189 | M133: =SUMIF('2020 Раздел 2'!B:B,B133,'2020 Раздел 2'!C:C)+SUMIF('2021 Раздел 3'!B:B,B133,'2021 Раздел 3'!C:C)+SUMIF('2022 Раздел 4'!B:B,B133,'2022 Раздел 4'!C:C) -> 2565435.69 | N133: 2022-12-30 | O133: РО
A134: 74 | B134: Г. Луга, ул. Победы, д. 4 | C134: 1988 | E134: панель | F134: 9 | G134: 1 | H134: 1 | I134: 3004.6 | J134: 1954.4 | K134: 1803.1 | L134: 82 | M134: =SUMIF('2020 Раздел 2'!B:B,B134,'2020 Раздел 2'!C:C)+SUMIF('2021 Раздел 3'!B:B,B134,'2021 Раздел 3'!C:C)+SUMIF('2022 Раздел 4'!B:B,B134,'2022 Раздел 4'!C:C) -> 1650053.72 | N134: 2022-12-30 | O134: РО
A135: 75 | B135: Г. Луга, ул. Победы, д. 7 | C135: 1977 | E135: кирпич | F135: 10 | G135: 1 | H135: 1 | I135: 2562.3 | J135: 2180.7 | K135: 1976.5 | L135: 89 | M135: =SUMIF('2020 Раздел 2'!B:B,B135,'2020 Раздел 2'!C:C)+SUMIF('2021 Раздел 3'!B:B,B135,'2021 Раздел 3'!C:C)+SUMIF('2022 Раздел 4'!B:B,B135,'2022 Раздел 4'!C:C) -> 2648059.73 | N135: 2022-12-30 | O135: РО
A136: Итого по муниципальному образованию | C136: x | D136: x | E136: x | F136: x | G136: =SUM(G128:G135) -> 9 | H136: x | I136: =SUM(I128:I135) -> 38660.5 | J136: 28836 | K136: 26735.8 | L136: 1038 | M136: 20184750.26 | N136: x | O136: x
A137: Итого по Лужскому муниципальному району | C137: x | D137: x | E137: x | F137: x | G137: =G136 -> 9 | H137: x | I137: =SUM(I136) -> 38660.5 | J137: =SUM(J136) -> 28836 | K137: =SUM(K136) -> 26735.8 | L137: =SUM(L136) -> 1038 | M137: =M136 -> 20184750.26 | N137: x | O137: x | P137: =M137-'2020 Раздел 2'!C90-'2021 Раздел 3'!C84 -> 2645029.24 | Q137: =#REF!-'2020 Раздел 2'!C90-'2021 Раздел 3'!C65 -> 
A138: Сосновоборский городской округ
A139: Муниципальное образование Сосновоборский городской округ
A140: =A135+1 -> 76 | B140: Г. Сосновый Бор, ул. Ленинградская, д. 38 | C140: 1987 | E140: кирпич | F140: 9 | G140: 1 | H140: 1 | I140: 1790.8 | J140: 1090.4 | K140: 1090.4 | L140: 82 | M140: =SUMIF('2020 Раздел 2'!B:B,B140,'2020 Раздел 2'!C:C)+SUMIF('2021 Раздел 3'!B:B,B140,'2021 Раздел 3'!C:C)+SUMIF('2022 Раздел 4'!B:B,B140,'2022 Раздел 4'!C:C) -> 2727354.76 | N140: 2022-12-30 | O140: РО
A141: =A140+1 -> 77 | B141: Г. Сосновый Бор, ул. Ленинградская, д. 50 | C141: 1988 | E141: кирпич | F141: 9 | G141: 1 | H141: 1 | I141: 2005.3 | J141: 1780.4 | K141: 1088.9 | L141: 76 | M141: =SUMIF('2020 Раздел 2'!B:B,B141,'2020 Раздел 2'!C:C)+SUMIF('2021 Раздел 3'!B:B,B141,'2021 Раздел 3'!C:C)+SUMIF('2022 Раздел 4'!B:B,B141,'2022 Раздел 4'!C:C) -> 2736190.13 | N141: 2022-12-30 | O141: РО
A142: =A141+1 -> 78 | B142: Г. Сосновый Бор, ул. Молодежная, д. 26 | C142: 1989 | E142: панель | F142: 9 | G142: 2 | H142: 2 | I142: 3940.2 | J142: 3940.2 | K142: 2291.4 | L142: 166 | M142: =SUMIF('2020 Раздел 2'!B:B,B142,'2020 Раздел 2'!C:C)+SUMIF('2021 Раздел 3'!B:B,B142,'2021 Раздел 3'!C:C)+SUMIF('2022 Раздел 4'!B:B,B142,'2022 Раздел 4'!C:C) -> 3474896.64 | N142: 2022-12-30 | O142: РО
A143: 79 | B143: Г. Сосновый Бор, ул. Парковая, д. 70 | C143: 1994 | E143: кирпич | F143: 9 | G143: 1 | H143: 1 | I143: 2238.1 | J143: 2238.1 | K143: 1332.8 | L143: 98 | M143: =SUMIF('2020 Раздел 2'!B:B,B143,'2020 Раздел 2'!C:C)+SUMIF('2021 Раздел 3'!B:B,B143,'2021 Раздел 3'!C:C)+SUMIF('2022 Раздел 4'!B:B,B143,'2022 Раздел 4'!C:C) -> 2727354.76 | N143: 2022-12-30 | O143: РО
A144: =A143+1 -> 80 | B144: Г. Сосновый Бор, ул. Сибирская, д. 5 | C144: 1973 | E144: кирпич | F144: 9 | G144: 1 | H144: 1 | I144: 2017.7 | J144: 2017.7 | K144: 1989 | L144: 85 | M144: =SUMIF('2020 Раздел 2'!B:B,B144,'2020 Раздел 2'!C:C)+SUMIF('2021 Раздел 3'!B:B,B144,'2021 Раздел 3'!C:C)+SUMIF('2022 Раздел 4'!B:B,B144,'2022 Раздел 4'!C:C) -> 1724085.72 | N144: 2022-12-30 | O144: РО
A145: =A144+1 -> 81 | B145: Г. Сосновый Бор, ул. Солнечная, д. 30 | C145: 1977 | E145: кирпич | F145: 12 | G145: 2 | H145: 1 | I145: 3993 | J145: 3993 | K145: 2332.7 | L145: 171 | M145: =SUMIF('2020 Раздел 2'!B:B,B145,'2020 Раздел 2'!C:C)+SUMIF('2021 Раздел 3'!B:B,B145,'2021 Раздел 3'!C:C)+SUMIF('2022 Раздел 4'!B:B,B145,'2022 Раздел 4'!C:C) -> 4471382.64 | N145: 2022-12-30 | O145: РО
A146: Итого по муниципальному образованию | C146: x | D146: x | E146: x | F146: x | G146: =SUM(G140:G145) -> 8 | H146: x | I146: =SUM(I140:I145) -> 15985.1 | J146: 15059.8 | K146: 10125.2 | L146: 678 | M146: 17861264.65 | N146: x | O146: x | P146: =M146-'2020 Раздел 2'!C96-'2021 Раздел 3'!C89-'2022 Раздел 4'!C69 -> 0 | Q146: =#REF!-'2020 Раздел 2'!C96 -> 
A147: Сланцевский муниципальный район
A148: Муниципальное образование Сланцевское городское поселение
A149: =A145+1 -> 82 | B149: Г. Сланцы, ул. Гагарина, д. 5а | C149: 1988 | E149: кирпич | F149: 9 | G149: 1 | H149: 1 | I149: 2733.7 | J149: 2080.4 | K149: 1918.33 | L149: 108 | M149: =SUMIF('2020 Раздел 2'!B:B,B149,'2020 Раздел 2'!C:C)+SUMIF('2021 Раздел 3'!B:B,B149,'2021 Раздел 3'!C:C)+SUMIF('2022 Раздел 4'!B:B,B149,'2022 Раздел 4'!C:C) -> 1646821.32 | N149: 2022-12-30 | O149: РО | Q149: =#REF!-'2020 Раздел 2'!C99 -> 
A150: Итого по муниципальному образованию | C150: x | D150: x | E150: x | F150: x | G150: =SUM(G149:G149) -> 1 | H150: x | I150: =SUM(I149:I149) -> 2733.7 | J150: 2080.4 | K150: 1918.33 | L150: 108 | M150: 1646821.32 | N150: x | O150: x | Q150: =#REF!-'2020 Раздел 2'!C100 -> 
A151: Итого по Сланцевскому муниципальному району | C151: x | D151: x | E151: x | F151: x | G151: =G150 -> 1 | H151: x | I151: =SUM(I150) -> 2733.7 | J151: =SUM(J150) -> 2080.4 | K151: =SUM(K150) -> 1918.33 | L151: =SUM(L150) -> 108 | M151: =M150 -> 1646821.32 | N151: x | O151: x | P151: =M151-'2020 Раздел 2'!C101 -> 0 | Q151: =#REF!-'2020 Раздел 2'!C101 -> 
A152: Тихвинский муниципальный район
A153: Муниципальное образование Тихвинское городское поселение
A154: =A149+1 -> 83 | B154: Г. Тихвин, микрорайон 1а, д. 45 | C154: 1995 | E154: панель | F154: 9 | G154: 2 | H154: 2 | I154: 5566.2 | J154: 4027.8 | K154: 2440.9 | L154: 423 | M154: =SUMIF('2020 Раздел 2'!B:B,B154,'2020 Раздел 2'!C:C)+SUMIF('2021 Раздел 3'!B:B,B154,'2021 Раздел 3'!C:C)+SUMIF('2022 Раздел 4'!B:B,B154,'2022 Раздел 4'!C:C) -> 5240807.34 | N154: 2022-12-30 | O154: РО
A155: =A154+1 -> 84 | B155: Г. Тихвин, ул. Советская, д. 1 | C155: 1994 | E155: панель | F155: 10 | G155: 2 | H155: 2 | I155: 3864 | J155: 4108.5 | K155: 2258.7 | L155: 360 | M155: =SUMIF('2020 Раздел 2'!B:B,B155,'2020 Раздел 2'!C:C)+SUMIF('2021 Раздел 3'!B:B,B155,'2021 Раздел 3'!C:C)+SUMIF('2022 Раздел 4'!B:B,B155,'2022 Раздел 4'!C:C) -> 5259843.75 | N155: 2022-12-30 | O155: РО
A156: =A155+1 -> 85 | B156: Г. Тихвин, ул. Машиностроителей, д.46 | C156: 1988 | E156: панель | F156: 9 | G156: 5 | H156: 5 | I156: 14841.1 | J156: 10091.3 | K156: 8441.6 | L156: 521 | M156: =SUMIF('2020 Раздел 2'!B:B,B156,'2020 Раздел 2'!C:C)+SUMIF('2021 Раздел 3'!B:B,B156,'2021 Раздел 3'!C:C)+SUMIF('2022 Раздел 4'!B:B,B156,'2022 Раздел 4'!C:C) -> 13021927.3 | N156: 2022-12-30 | O156: РО
A157: Итого по муниципальному образованию | C157: x | D157: x | E157: x | F157: x | G157: =SUM(G154:G156) -> 9 | H157: x | I157: =SUM(I154:I156) -> 24271.3 | J157: =SUM(J154:J156) -> 18227.6 | K157: 13141.2 | L157: 1304 | M157: 23522578.39 | N157: x | O157: x
A158: Итого по Тихвинскому муниципальному району | C158: x | D158: x | E158: x | F158: x | G158: =G157 -> 9 | H158: x | I158: =SUM(I157) -> 24271.3 | J158: =SUM(J157) -> 18227.6 | K158: 13141.2 | L158: 1304 | M158: 23522578.39 | N158: x | O158: x | P158: =M158-'2020 Раздел 2'!C108-'2021 Раздел 3'!C93 -> 0
A159: Тосненский район
A160: Муниципальное образование Тосненское городское поселение
A161: =A156+1 -> 86 | B161: Г. Тосно, ул. М. Горького, д. 8а | G161: 2 | M161: =SUMIF('2020 Раздел 2'!B:B,B161,'2020 Раздел 2'!C:C)+SUMIF('2021 Раздел 3'!B:B,B161,'2021 Раздел 3'!C:C)+SUMIF('2022 Раздел 4'!B:B,B161,'2022 Раздел 4'!C:C) -> 5208770.92 | N161: 2022-12-30 | O161: РО
A162: =A161+1 -> 87 | B162: Г. Тосно, пр. Ленина, д. 19 | G162: 4 | M162: =SUMIF('2020 Раздел 2'!B:B,B162,'2020 Раздел 2'!C:C)+SUMIF('2021 Раздел 3'!B:B,B162,'2021 Раздел 3'!C:C)+SUMIF('2022 Раздел 4'!B:B,B162,'2022 Раздел 4'!C:C) -> 10417541.84 | N162: 2022-12-30 | O162: РО
A163: =A162+1 -> 88 | B163: Г. Тосно, ул. Блинникова, д. 8 | C163: 1992 | E163: блочный | F163: 10 | G163: 5 | H163: 5 | I163: 13870.11 | J163: 11140.91 | K163: 10245.25 | L163: 576 | M163: =SUMIF('2020 Раздел 2'!B:B,B163,'2020 Раздел 2'!C:C)+SUMIF('2021 Раздел 3'!B:B,B163,'2021 Раздел 3'!C:C)+SUMIF('2022 Раздел 4'!B:B,B163,'2022 Раздел 4'!C:C) -> 14136755.1 | N163: 2022-12-30 | O163: РО
A164: 89 | B164: Г. Тосно, пр. Ленина, д. 69 | C164: 1992 | E164: кирпич | F164: 12 | G164: 2 | H164: 1 | I164: 6362.55 | J164: 4689.25 | K164: 4205.35 | L164: 195 | M164: =SUMIF('2020 Раздел 2'!B:B,B164,'2020 Раздел 2'!C:C)+SUMIF('2021 Раздел 3'!B:B,B164,'2021 Раздел 3'!C:C)+SUMIF('2022 Раздел 4'!B:B,B164,'2022 Раздел 4'!C:C) -> 6221849.6 | N164: 2022-12-30 | O164: РО
A165: Итого по муниципальному образованию | C165: x | D165: x | E165: x | F165: x | G165: =SUM(G161:G164) -> 13 | H165: x | I165: =SUM(I161:I164) -> 20232.66 | J165: 15830.16 | K165: 14450.6 | L165: 771 | M165: 35984917.46 | N165: x | O165: x
A166: Итого по Тосненскому району | C166: x | D166: x | E166: x | F166: x | G166: =G165 -> 13 | H166: x | I166: =SUM(I165) -> 20232.66 | J166: =SUM(J165) -> 15830.16 | K166: =SUM(K165) -> 14450.6 | L166: =SUM(L165) -> 771 | M166: =M165 -> 35984917.46 | N166: x | O166: x | P166: =M166-'2020 Раздел 2'!C114-'2021 Раздел 3'!C100 -> 20358604.7
A167: ИТОГО по Ленинградской области | C167: x | D167: x | E167: x | F167: x | G167: =G166+G158+G151+G146+G137+G125+G120+G105+G86+G74+G47+G21 -> 173 | H167: х | I167: =I166+I158+I151+I146+I137+I125+I120+I105+I86+I74+I47+I21 -> 498359.96 | J167: 429225.45 | K167: 347394.56 | L167: 16322.6 | M167: 436699457.1 | N167: x | O167: x | P167: =M167-'2020 Раздел 2'!C115-'2021 Раздел 3'!C101-'2022 Раздел 4'!C75 -> 0
A168: Осуществление строительного контроля | C168: x | D168: x | E168: x | F168: x | G168: x | H168: x | I168: x | J168: x | K168: x | L168: x | M168: ='2020 Раздел 2'!C116+'2021 Раздел 3'!C102+'2022 Раздел 4'!C76 -> 8767406.202 | N168: х | O168: х
A169: Итого по Ленинградской области со строительным контролем | C169: x | D169: x | E169: x | F169: x | G169: x | H169: x | I169: x | J169: x | K169: x | L169: x | M169: =M167+M168 -> 445466863.3 | N169: х | O169: х | P169: =M169-'2020 Раздел 2'!C117-'2021 Раздел 3'!C103-'2022 Раздел 4'!C77 -> 0
O897: =#REF!+#REF!+#REF!+#REF!+#REF!+#REF! -> 

Sheet 2020 Раздел 2
A1: Раздел II. Перечень многоквартирных домов, в которых будет проводиться капитальный ремонт лифтового оборудования в 2020 году, за счет средств собственников, формирующих фонд капитального ремонта на счетах регионального оператора
A2: № п\п | B2: Адрес МКД | C2: Стоимость капитального ремонта ВСЕГО | D2: Ремонт или замена лифтового оборудования | F2: ТО | G2: Проектные работы
C3: руб. | D3: ед. | E3: руб | F3: руб. | G3: руб.
A4: 1 | B4: 2 | C4: 3 | D4: 4 | E4: 5 | F4: 6 | G4: 7
A5: Всеволожский муниципальный район
A6: Муниципальное образование Город Всеволожск
A7: 1 | B7: Г. Всеволожск, ул. Александровская, д. 81, корп. 3 | C7: =E7+F7+G7 -> 40300 | G7: 40300 | H7: 260000
A8: =A7+1 -> 2 | B8: Г. Всеволожск, ул. Балашова, д. 8/3 | C8: =E8+F8+G8 -> 40300 | G8: 40300
A9: =A8+1 -> 3 | B9: Г. Всеволожск, ул. Василеозерская, д. 5 | C9: =E9+F9+G9 -> 40300 | G9: 40300
A10: =A9+1 -> 4 | B10: Г. Всеволожск, ул. Ленинградская, д. 24/84 | C10: =E10+F10+G10 -> 100750 | G10: 100750
A11: Итого по муниципальному образованию | C11: =SUM(C7:C10) -> 221650 | D11: =SUM(D7:D10) -> 0 | E11: =SUM(E7:E10) -> 0 | F11: =SUM(F7:F10) -> 0 | G11: =SUM(G7:G10) -> 221650
A12: Муниципальное образование Муринское городское поселение
A13: =A10+1 -> 5 | B13: г. Мурино, ул. Оборонная, д. 12 | C13: =E13+F13+G13 -> 40300 | G13: 40300
A14: =A13+1 -> 6 | B14: г. Мурино, ул. Оборонная, д. 24 | C14: =E14+F14+G14 -> 60450 | G14: 60450
A15: =A14+1 -> 7 | B15: г. Мурино, ул. Оборонная, д. 22 | C15: =E15+F15+G15 -> 96070 | G15: 96070
A16: Итого по муниципальному образованию | C16: =SUM(C13:C15) -> 196820 | D16: =SUM(D13:D15) -> 0 | E16: =SUM(E13:E15) -> 0 | F16: =SUM(F13:F15) -> 0 | G16: =SUM(G13:G15) -> 196820
A17: Муниципальное образование Свердловское городское поселение
A18: =A15+1 -> 8 | B18: Пос. им. Свердлова, микрорайон 1, д. 8 | C18: =E18+F18+G18 -> 80600 | G18: 80600
A19: Итого по муниципальному образованию | C19: =C18 -> 80600 | D19: =D18 -> 0 | E19: =E18 -> 0 | F19: =F18 -> 0 | G19: =G18 -> 80600
A20: Муниципальное образование Сертолово
A21: =A18+1 -> 9 | B21: Г. Сертолово, микрорайон Сертолово-1, ул. Молодежная, д. 8, корп. 2 | C21: =E21+F21+G21 -> 60450 | G21: 60450
A22: =A21+1 -> 10 | B22: Г. Сертолово, микрорайон Сертолово-1, ул. Центральная, д. 6, корп. 1 | C22: =E22+F22+G22 -> 8347235.03 | D22: 3 | E22: 7850402.69 | F22: 204722.34 | G22: 292110
A23: =A22+1 -> 11 | B23: Г. Сертолово, микрорайон Сертолово-1, ул. Центральная, д. 7, корп. 1 | C23: =E23+F23+G23 -> 8401398.54 | D23: 3 | E23: 7904566.2 | F23: 204722.34 | G23: 292110
A24: Итого по муниципальному образованию | C24: =SUM(C21:C23) -> 16809083.57 | D24: =SUM(D21:D23) -> 6 | E24: =SUM(E21:E23) -> 15754968.89 | F24: =SUM(F21:F23) -> 409444.68 | G24: =SUM(G21:G23) -> 644670
A25: Итого по Всеволожскому муниципальному району | C25: =C24+C16+C11+C19 -> 17308153.57 | D25: =D24+D16+D11+D19 -> 6 | E25: =E24+E16+E11+E19 -> 15754968.89 | F25: =F24+F16+F11+F19 -> 409444.68 | G25: =G24+G16+G11+G19 -> 1143740
A26: Выборгский район
A27: Муниципальное образование Город Выборг
A28: =A23+1 -> 12 | B28: Г. Выборг, бул. Кутузова, д. 33 | C28: =E28+F28+G28 -> 2467427.48 | D28: 1 | E28: 2316030.9 | F28: 53376.58 | G28: 98020
A29: =A28+1 -> 13 | B29: Г. Выборг, просп. Победы, д. 8 | C29: 2393012.12 | D29: 1 | E29: 2234011.13 | F29: 60980.99 | G29: 98020
A30: 14 | B30: Г. Выборг, просп. Победы, д. 12 | C30: 80600 | G30: 80600
A31: 15 | B31: Г. Выборг, ул. Гагарина, д. 29 | C31: 6956641.83 | D31: 3 | E31: 6470185.44 | F31: 192396.39 | G31: 294060
A32: 16 | B32: Г. Выборг, ул. Гагарина, д. 65 | C32: 2380349.77 | D32: 1 | E32: 2221348.78 | F32: 60980.99 | G32: 98020
A33: 17 | B33: Г. Выборг, ул. Крепостная, д. 39а | C33: 2358346.51 | D33: 1 | E33: 2196194.38 | F33: 64132.13 | G33: 98020
A34: 18 | B34: Г. Выборг, ул. Офицерская, д. 12 | C34: 2430153.92 | D34: 1 | E34: 2267350.7 | F34: 64783.22 | G34: 98020
A35: 19 | B35: Г. Выборг, ул. Офицерская, д. 14 | C35: 2431265.26 | D35: 1 | E35: 2268462.04 | F35: 64783.22 | G35: 98020
A36: Итого по муниципальному образованию | C36: =SUM(C28:C35) -> 21497796.89 | D36: =SUM(D28:D35) -> 9 | E36: =SUM(E28:E35) -> 19973583.37 | F36: =SUM(F28:F35) -> 561433.52 | G36: =SUM(G28:G35) -> 962780
A37: Муниципальное образование Светогорское городское поселение
A38: =A35+1 -> 20 | B38: Г. Светогорск, ул. Красноармейская, д. 26 | C38: =E38+F38+G38 -> 5716998.15 | D38: 3 | E38: 5590336.8 | F38: 126661.35
A39: =A38+1 -> 21 | B39: Г. Светогорск, ул. Красноармейская, д. 32 | C39: =E39+F39+G39 -> 9590476.86 | D39: 5 | E39: 8778088.51 | F39: 322288.35 | G39: 490100
A40: =A39+1 -> 22 | B40: Г. Светогорск, ул. Красноармейская, д. 8 | C40: =E40+F40+G40 -> 5696067.8 | D40: 3 | E40: 5208634.79 | F40: 193373.01 | G40: 294060
A41: Итого по муниципальному образованию | C41: =SUM(C38:C40) -> 21003542.81 | D41: =SUM(D38:D40) -> 11 | E41: =SUM(E38:E40) -> 19577060.1 | F41: =SUM(F38:F40) -> 642322.71 | G41: =SUM(G38:G40) -> 784160
A42: Муниципальное образование Советское городское поселение
A43: =A40+1 -> 23 | B43: Г.п. Советский, ул. Садовая, д. 46 | C43: =E43+F43+G43 -> 1902539.21 | D43: 1 | E43: 1854239.09 | F43: 48300.12
A44: Итого по муниципальному образованию | C44: =SUM(C43) -> 1902539.21 | D44: =SUM(D43) -> 1 | E44: =SUM(E43) -> 1854239.09 | F44: =SUM(F43) -> 48300.12 | G44: =SUM(G43) -> 0
A45: Итого по Выборгскому району | C45: =C41+C36+C44 -> 44403878.91 | D45: =D41+D36+D44 -> 21 | E45: =E41+E36+E44 -> 41404882.56 | F45: =F41+F36+F44 -> 1252056.35 | G45: =G41+G36+G44 -> 1746940
A46: Гатчинский муниципальный район
A47: Муниципальное образование Город Гатчина
A48: =A43+1 -> 24 | B48: Г. Гатчина, ул. Красных Военлётов, д. 9 | C48: =E48+F48+G48 -> 20150 | G48: 20150
A49: =A48+1 -> 25 | B49: Г. Гатчина, ул. Рощинская, д. 19 | C49: =E49+F49+G49 -> 10063302.02 | D49: 4 | E49: 9337485.53 | F49: 216216.49 | G49: 509600
A50: =A49+1 -> 26 | B50: Г. Гатчина, ул. Рощинская, д. 9Г | C50: =E50+F50+G50 -> 5248474.37 | D50: 2 | E50: 4872325.25 | F50: 121349.12 | G50: 254800
A51: =A50+1 -> 27 | B51: Г. Гатчина, ул. Хохлова, д. 2 | C51: =E51+F51+G51 -> 60450 | G51: 60450
A52: Итого по муниципальному образованию | C52: =SUM(C48:C51) -> 15392376.39 | D52: =SUM(D48:D51) -> 6 | E52: =SUM(E48:E51) -> 14209810.78 | F52: =SUM(F48:F51) -> 337565.61 | G52: =SUM(G48:G51) -> 845000
A53: Итого по Гатчинскому муниципальному району | C53: =C52 -> 15392376.39 | D53: =D52 -> 6 | E53: =E52 -> 14209810.78 | F53: =F52 -> 337565.61 | G53: =G52 -> 845000
A54: Киришский муниципальный район
A55: Муниципальное образование Киришское городское поселение
A56: =A51+1 -> 28 | B56: Г. Кириши, бул. Плавницкий, д. 16 | C56: =E56+F56+G56 -> 2778120.42 | D56: 1 | E56: 2585612.75 | F56: 64457.67 | G56: 128050
A57: =A56+1 -> 29 | B57: Г. Кириши, пер. Березовый, д. 10 | C57: 20150 | G57: 20150
A58: 30 | B58: Г. Кириши, просп. Героев, д. 15 | C58: 2780404.62 | D58: 1 | E58: 2587896.95 | F58: 64457.67 | G58: 128050
A59: 31 | B59: Г. Кириши, просп. Героев, д. 17 | C59: 5522841.44 | D59: 2 | E59: 5137826.1 | F59: 128915.34 | G59: 256100
A60: 32 | B60: Г. Кириши, ул. Декабристов Бестужевых, д. 16 | C60: 2777552.78 | D60: 1 | E60: 2588828.22 | F60: 60674.56 | G60: 128050
A61: 33 | B61: Г. Кириши, ул. Строителей, д. 28 | C61: 2778665.3 | D61: 1 | E61: 2586157.63 | F61: 64457.67 | G61: 128050
A62: 34 | B62: Г. Кириши, ул. Строителей, д. 30 | C62: 8374976.69 | D62: 3 | E62: 7797453.68 | F62: 193373.01 | G62: 384150
A63: 35 | B63: Г. Кириши, ул. Строителей, д. 46 | C63: 11159997.44 | D63: 4 | E63: 10389966.76 | F63: 257830.68 | G63: 512200
A64: =A63+1 -> 36 | B64: Г. Кириши, ул. Энергетиков, д. 40 | C64: 2777685.76 | D64: 1 | E64: 2588961.2 | F64: 60674.56 | G64: 128050
A65: Итого по муниципальному образованию | C65: =SUM(C56:C64) -> 38970394.45 | D65: =SUM(D56:D64) -> 14 | E65: =SUM(E56:E64) -> 36262703.29 | F65: =SUM(F56:F64) -> 894841.16 | G65: =SUM(G56:G64) -> 1812850
A66: Итого по Киришскому муниципальному району | C66: =C65 -> 38970394.45 | D66: =D65 -> 14 | E66: =E65 -> 36262703.29 | F66: =F65 -> 894841.16 | G66: =G65 -> 1812850
A67: Кировский муниципальный район
A68: Муниципальное образование Кировск
A69: =A64+1 -> 37 | B69: Г. Кировск, ул. Молодежная, д. 3 | C69: =E69+F69+G69 -> 20150 | G69: 20150
A70: =A69+1 -> 38 | B70: Г. Кировск, ул. Молодежная, д. 5 | C70: =E70+F70+G70 -> 20150 | G70: 20150
A71: Итого по муниципальному образованию | C71: =SUM(C69:C70) -> 40300 | D71: =SUM(D69:D70) -> 0 | E71: =SUM(E69:E70) -> 0 | F71: =SUM(F69:F70) -> 0 | G71: =SUM(G69:G70) -> 40300
A72: Муниципальное образование Отрадненское городское поселение
A73: =A70+1 -> 39 | B73: Г. Отрадное, ул. Железнодорожная, д. 13 | C73: =E73+F73+G73 -> 192140 | G73: 192140
A74: =A73+1 -> 40 | B74: Г. Отрадное, ул. Зарубина, д. 15 | C74: =E74+F74+G74 -> 96070 | G74: 96070
A75: =A74+1 -> 41 | B75: Г. Отрадное, ул. Лесная, д. 10 | C75: =E75+F75+G75 -> 96070 | G75: 96070
A76: =A75+1 -> 42 | B76: Г. Отрадное, ул. Центральная,д.17 | C76: =E76+F76+G76 -> 384280 | G76: 384280
A77: =A76+1 -> 43 | B77: Г. Отрадное, ул. Щурова, д.4 | C77: =E77+F77+G77 -> 192140 | G77: 192140
A78: Итого по муниципальному образованию | C78: =SUM(C73:C77) -> 960700 | D78: =SUM(D73:D77) -> 0 | E78: =SUM(E73:E77) -> 0 | F78: =SUM(F73:F77) -> 0 | G78: =SUM(G73:G77) -> 960700
A79: Итого по Кировскому муниципальному району | C79: =+C78+C71 -> 1001000 | D79: =+D78+D71 -> 0 | E79: =+E78+E71 -> 0 | F79: =+F78+F71 -> 0 | G79: =+G78+G71 -> 1001000
A80: Лужский муниципальный район
A81: Муниципальное образование Лужское городское поселение
A82: =A77+1 -> 44 | B82: Г. Луга, просп. Володарского, д. 26 | C82: =E82+F82+G82 -> 3245119.33 | D82: 2 | E82: 3154188.69 | F82: 90930.64
A83: =A82+1 -> 45 | B83: Г. Луга, ул. Миккели, д. 1, кор. 1 | C83: 2565435.69 | D83: 1 | E83: 2377361.13 | F83: 60674.56 | G83: 127400
A84: 46 | B84: Г. Луга, ул. Миккели, д. 1, кор. 3 | C84: 2565435.69 | D84: 1 | E84: 2377361.13 | F84: 60674.56 | G84: 127400
A85: 47 | B85: Г. Луга, ул. Победы, д. 4 | C85: 1650053.72 | D85: 1 | E85: 1604588.4 | F85: 45465.32
A86: 48 | B86: Г. Луга, ул. Победы, д. 7 | C86: 2648059.73 | D86: 1 | E86: 2456202.06 | F86: 64457.67 | G86: 127400
A87: 49 | B87: Г. Луга, просп. Урицкого, д. 101 | C87: 20150 | G87: 20150
A88: 50 | B88: Г. Луга, просп. Урицкого, д. 99 | C88: 20150 | G88: 20150
A89: Итого по муниципальному образованию | C89: =SUM(C82:C88) -> 12714404.16 | D89: =SUM(D82:D88) -> 6 | E89: 11969701.41 | F89: 322202.75 | G89: =SUM(G82:G88) -> 422500
A90: Итого по Лужскому муниципальному району | C90: =C89 -> 12714404.16 | D90: =D89 -> 6 | E90: =E89 -> 11969701.41 | F90: =F89 -> 322202.75 | G90: =G89 -> 422500
A91: Сосновоборский городской округ
A92: Муниципальное образование Сосновоборский городской округ
A93: =A88+1 -> 51 | B93: Г. Сосновый Бор, ул. Молодежная, д. 26 | C93: =E93+F93+G93 -> 3474896.64 | D93: 2 | E93: 3378296.4 | F93: 96600.24
A94: =A93+1 -> 52 | B94: Г. Сосновый Бор, ул. Сибирская, д. 5 | C94: =E94+F94+G94 -> 1724085.72 | D94: 1 | E94: 1675785.6 | F94: 48300.12
A95: =A94+1 -> 53 | B95: Г. Сосновый Бор, ул. Солнечная, д. 30 | C95: =E95+F95+G95 -> 4471382.64 | D95: 2 | E95: 4357773.6 | F95: 113609.04
A96: Итого по муниципальному образованию | C96: =SUM(C93:C95) -> 9670365 | D96: =SUM(D93:D95) -> 5 | E96: =SUM(E93:E95) -> 9411855.6 | F96: =SUM(F93:F95) -> 258509.4 | G96: =SUM(G93:G95) -> 0
A97: Сланцевский муниципальный район
A98: Муниципальное образование Сланцевское городское поселение
A99: =A95+1 -> 54 | B99: Г. Сланцы, ул. Гагарина, д. 5а | C99: =E99+F99+G99 -> 1646821.32 | D99: 1 | E99: 1598521.2 | F99: 48300.12
A100: Итого по муниципальному образованию | C100: =SUM(C99:C99) -> 1646821.32 | D100: =SUM(D99:D99) -> 1 | E100: =SUM(E99:E99) -> 1598521.2 | F100: =SUM(F99:F99) -> 48300.12 | G100: =SUM(G99:G99) -> 0
A101: Итого по Сланцевскому муниципальному району | C101: =C100 -> 1646821.32 | D101: =D100 -> 1 | E101: =E100 -> 1598521.2 | F101: =F100 -> 48300.12 | G101: =G100 -> 0
A102: Тихвинский муниципальный район
A103: Муниципальное образование Тихвинское городское поселение
A104: =A99+1 -> 55 | B104: Г. Тихвин, микрорайон 1а, д. 45 | C104: =E104+F104+G104 -> 5240807.34 | D104: 2 | E104: 4873758.22 | F104: 121349.12 | G104: 245700
A105: =A104+1 -> 56 | B105: Г. Тихвин, ул. Машиностроителей, д.46 | C105: =E105+F105+G105 -> 480350 | G105: 480350
A106: =A105+1 -> 57 | B106: Г. Тихвин, ул. Советская, д. 1 | C106: =E106+F106+G106 -> 5259843.75 | D106: 2 | E106: 4892794.63 | F106: 121349.12 | G106: 245700
A107: Итого по муниципальному образованию | C107: =SUM(C104:C106) -> 10981001.09 | D107: =SUM(D104:D106) -> 4 | E107: =SUM(E104:E106) -> 9766552.85 | F107: =SUM(F104:F106) -> 242698.24 | G107: =SUM(G104:G106) -> 971750
A108: Итого по Тихвинскому муниципальному району | C108: =C107 -> 10981001.09 | D108: =D107 -> 4 | E108: =E107 -> 9766552.85 | F108: =F107 -> 242698.24 | G108: =G107 -> 971750
A109: Тосненский район
A110: Муниципальное образование Тосненское городское поселение
A111: =A106+1 -> 58 | B111: Г. Тосно, ул. М. Горького, д. 8а | C111: =E111+F111+G111 -> 192140 | G111: 192140
A112: =A111+1 -> 59 | B112: Г. Тосно, пр. Ленина, д. 19 | C112: =E112+F112+G112 -> 384280 | G112: 384280
A113: Итого по муниципальному образованию | C113: =SUM(C111:C112) -> 576420 | D113: =SUM(D111:D112) -> 0 | E113: =SUM(E111:E112) -> 0 | F113: =SUM(F111:F112) -> 0 | G113: =SUM(G111:G112) -> 576420
A114: Итого по Тосненскому району | C114: =C113 -> 576420 | D114: =D113 -> 0 | E114: =E113 -> 0 | F114: =F113 -> 0 | G114: =G113 -> 576420
A115: ИТОГО по Ленинградской области | C115: =C114+C108+C101+C96+C90+C79+C66+C53+C45+C25 -> 152664814.9 | D115: =D114+D108+D101+D96+D90+D79+D66+D53+D45+D25 -> 63 | E115: =E114+E108+E101+E96+E90+E79+E66+E53+E45+E25 -> 140378996.6 | F115: =F114+F108+F101+F96+F90+F79+F66+F53+F45+F25 -> 3765618.31 | G115: =G114+G108+G101+G96+G90+G79+G66+G53+G45+G25 -> 8520200
A116: Осуществление строительного контроля | C116: =(C115-F115-G115)*0.0214 -> 3004110.527
A117: Итого по Ленинградской области со строительным контролем | C117: =C115+C116 -> 155668925.4
G191: =SUM(G178:G190) -> 0
G214: =SUM(G196:G213) -> 0
G225: =SUM(G219:G224) -> 0
G233: =SUM(G227:G232) -> 0
G239: =SUM(G235:G237) -> 0
G240: =G191+G214+G225+G239+G233+G217 -> 0
G247: =SUM(G243:G246) -> 0
G311: =SUM(G252:G310) -> 0
G318: =SUM(G317) -> 0
G325: =G247+G311+G318 -> 0
G340: =SUM(G328:G339) -> 0
G345: =SUM(G342:G344) -> 0
G346: =G340+G345 -> 0
G376: =SUM(G349:G375) -> 0
G381: =SUM(G378:G380) -> 0
G385: =SUM(G383:G384) -> 0
G386: =G376+G385+G381 -> 0
G413: =SUM(G389:G412) -> 0
G430: =SUM(G415:G429) -> 0
G437: =SUM(G432:G436) -> 0
G440: =SUM(G439:G439) -> 0
G448: =SUM(G442:G447) -> 0
G456: =SUM(G450:G455) -> 0
G457: =#REF!+#REF!+#REF!+#REF!+#REF!+F457+#REF!+#REF!+#REF!+#REF!+#REF!+#REF!+#REF!+#REF! -> 
G458: =#REF!+#REF!+#REF!+#REF!+#REF!+F458+#REF!+#REF!+#REF!+#REF!+#REF!+#REF!+#REF!+#REF! -> 
G459: =#REF!+#REF!+#REF!+#REF!+#REF!+F459+#REF!+#REF!+#REF!+#REF!+#REF!+#REF!+#REF!+#REF! -> 
G460: =#REF!+#REF!+#REF!+#REF!+#REF!+F460+#REF!+#REF!+#REF!+#REF!+#REF!+#REF!+#REF!+#REF! -> 
G461: =#REF!+#REF!+#REF!+#REF!+#REF!+F461+#REF!+#REF!+#REF!+#REF!+#REF!+#REF!+#REF!+#REF! -> 
G487: =SUM(G463:G486) -> 0
G488: =SUM(G487+G456+G448+G440+G437+G430+G413) -> 0
G524: =SUM(G491:G523) -> 0
G525: =G524 -> 0
G534: =SUM(G528:G531) -> 0
G537: =SUM(G536:G536) -> 0
G542: =SUM(G539:G541) -> 0
G548: =SUM(G544:G547) -> 0
G554: =SUM(G550:G553) -> 0
G558: =SUM(G556:G557) -> 0
G564: =SUM(G560:G563) -> 0
G565: =G542+G534+G537+G564+G558+G548+G554 -> 0
G570: =SUM(G568:G569) -> 0
G593: =SUM(G584:G592) -> 0
G597: =SUM(G595:G596) -> 0
G600: =SUM(G599:G599) -> 0
G609: =SUM(G602:G608) -> 0
G617: =SUM(G611:G616) -> 0
G620: =SUM(G619:G619) -> 0
G623: =SUM(G622) -> 0
G630: =G570+G593+G597+G600+G609+G617+G620+G623+G629 -> 0
G641: =SUM(G633:G640) -> 0
G642: =G641 -> 0
G650: =SUM(G645:G649) -> 0
G656: =SUM(G652:G655) -> 0
G661: =SUM(G658:G660) -> 0
G667: =SUM(G663:G666) -> 0
G671: =SUM(G669:G670) -> 0
G679: =G677+G678 -> 0
G680: =G650+G656+G661+G667+G671 -> 0
G684: =SUM(G683:G683) -> 0
G687: =SUM(G686) -> 0
G725: =SUM(G689:G724) -> 0
G726: =G725+G687+G684 -> 0
G847: =SUM(G728:G846) -> 0
G959: =SUM(G855:G958) -> 0
G979: =SUM(G961:G978) -> 0
G980: =G959+G979 -> 0
G984: =SUM(G983:G983) -> 0
G992: =SUM(G986:G991) -> 0
G995: =SUM(G994:G994) -> 0
G1015: =SUM(G997:G1014) -> 0
G1018: =SUM(G1017:G1017) -> 0
G1021: =SUM(G1020) -> 0
G1022: =G992+G995+G1018+G1015+G984+G1021 -> 0

Sheet 2021 Раздел 3
A1: Раздел III. Перечень многоквартирных домов, в которых будет проводиться капитальный ремонт лифтового оборудования в 2021 году, за счет средств собственников, формирующих фонд капитального ремонта на счетах регионального оператора
A2: № п\п | B2: Адрес МКД | C2: Стоимость капитального ремонта ВСЕГО | D2: Ремонт или замена лифтового оборудования | F2: ТО | G2: Проектные работы
C3: руб. | D3: ед. | E3: руб | F3: руб. | G3: руб.
A4: 1 | B4: 2 | C4: 3 | D4: 4 | E4: 5 | F4: 6 | G4: 7
A5: Волховский муниципальный район
A6: Муниципальное образование Город Волхов
A7: 1 | B7: Г. Волхов, просп. Волховский, д. 57 | C7: =E7+F7+G7 -> 130000 | G7: 130000
A8: Итого по муниципальному образованию | C8: =SUM(C7:C7) -> 130000 | G8: =SUM(G7:G7) -> 130000
A9: Итого по Волховскому муниципальному району | C9: =C8 -> 130000 | G9: =G8 -> 130000
A10: Всеволожский муниципальный район
A11: Муниципальное образование Город Всеволожск
A12: =A7+1 -> 2 | B12: Г. Всеволожск, ул. Александровская, д. 81, корп. 3 | C12: =E12+F12+G12 -> 4825316.86 | D12: 2 | E12: 4702742 | F12: 122574.86
A13: =A12+1 -> 3 | B13: Г. Всеволожск, ул. Балашова, д. 8/3 | C13: 4999921.52 | D13: 2 | E13: =2434852*D13 -> 4869704 | F13: 130217.52
A14: 4 | B14: Г. Всеволожск, ул. Василеозерская, д. 5 | C14: 5016630.92 | D14: 2 | E14: =2434852*D14 -> 4869704 | F14: 146926.92
A15: 5 | B15: Г. Всеволожск, ул. Василеозерская, д. 7 | C15: 260000 | G15: 260000
A16: 6 | B16: Г. Всеволожск, ул. Ленинградская, д. 30, корп. 1 | C16: 130000 | G16: 130000
A17: 7 | B17: Г. Всеволожск, ул. Ленинградская, д. 24/84 | C17: 12499803.8 | D17: 5 | E17: 12174260 | F17: 325543.8
A18: Итого по муниципальному образованию | C18: =SUM(C12:C17) -> 27731673.1 | D18: =SUM(D12:D17) -> 11 | E18: =SUM(E12:E17) -> 26616410 | F18: =SUM(F12:F17) -> 725263.1 | G18: =SUM(G12:G17) -> 390000
A19: Муниципальное образование Муринское городское поселение
A20: =A17+1 -> 8 | B20: г. Мурино, ул. Оборонная, д. 12 | C20: =E20+F20+G20 -> 4999921.52 | D20: 2 | E20: =2434852*D20 -> 4869704 | F20: 130217.52
A21: =A20+1 -> 9 | B21: г. Мурино, ул. Оборонная, д. 24 | C21: =E21+F21+G21 -> 7499882.28 | D21: 3 | E21: =2434852*D21 -> 7304556 | F21: 195326.28
A22: =A21+1 -> 10 | B22: г. Мурино, ул. Оборонная, д. 22 | C22: =E22+F22+G22 -> 2508315.46 | D22: 1 | E22: =2434852*D22 -> 2434852 | F22: =73463.46*D22 -> 73463.46
A23: Итого по муниципальному образованию | C23: =SUM(C20:C22) -> 15008119.26 | D23: =SUM(D20:D22) -> 6 | E23: =SUM(E20:E22) -> 14609112 | F23: =SUM(F20:F22) -> 399007.26
A24: Муниципальное образование Свердловское городское поселение
A25: =A22+1 -> 11 | B25: Пос. им. Свердлова, микрорайон 1, д. 8 | C25: =E25+F25+G25 -> 9999843.04 | D25: 4 | E25: =2434852*D25 -> 9739408 | F25: 260435.04
A26: Итого по муниципальному образованию | C26: =SUM(C25) -> 9999843.04 | D26: =SUM(D25) -> 4 | E26: =SUM(E25) -> 9739408 | F26: =SUM(F25) -> 260435.04
A27: Муниципальное образование Сертолово
A28: =A25+1 -> 12 | B28: г.Сертолово, микрорайон Сертолово-1, ул. Ветеранов, д. № 11 корп. 2 | C28: =E28+F28+G28 -> 7901346.24 | D28: 3 | E28: 7304556 | F28: 206790.24 | G28: 390000
A29: =A28+1 -> 13 | B29: г.Сертолово, микрорайон Сертолово-1, ул.Центральная, д. 3 | C29: =E29+F29+G29 -> 8151789.24 | D29: 3 | E29: 7554999 | F29: 206790.24 | G29: 390000
A30: Итого по муниципальному образованию | C30: =SUM(C28:C29) -> 16053135.48 | D30: =SUM(D28:D29) -> 6 | E30: =SUM(E28:E29) -> 14859555 | F30: =SUM(F28:F29) -> 413580.48 | G30: =SUM(G28:G29) -> 780000
A31: Итого по Всеволожскому муниципальному району | C31: =C30+C26+C23+C18 -> 68792770.88 | D31: =D30+D26+D23+D18 -> 27 | E31: =E30+E26+E23+E18 -> 65824485 | F31: =F30+F26+F23+F18 -> 1798285.88 | G31: =G30+G26+G23+G18 -> 1170000
A32: Выборгский район
A33: Муниципальное образование Город Выборг
A34: =A29+1 -> 14 | B34: Г. Выборг, ул. Гагарина, д. 69 | C34: =E34+F34+G34 -> 260000 | G34: 260000
A35: =A34+1 -> 15 | B35: Г. Выборг, просп. Победы, д. 12 | C35: =E35+F35+G35 -> 9301424.46 | D35: 4 | E35: 9071560 | F35: 229864.46
A36: Итого по муниципальному образованию | C36: =SUM(C34:C35) -> 9561424.46 | D36: =SUM(D34:D35) -> 4 | E36: =SUM(E34:E35) -> 9071560 | F36: =SUM(F34:F35) -> 229864.46 | G36: =SUM(G34:G35) -> 260000
A37: Муниципальное образование Полянское сельское поселение
A38: =A35+1 -> 16 | B38: пос. Каменка, ул. Гвардейская, д. 75 | C38: =E38+F38+G38 -> 130000 | G38: 130000
A39: =A38+1 -> 17 | B39: пос. Каменка, ул. Гвардейская, д. 77 | C39: =E39+F39+G39 -> 130000 | G39: 130000
A40: Итого по муниципальному образованию | C40: =SUM(C38:C39) -> 260000 | D40: =SUM(D38:D39) -> 0 | E40: =SUM(E38:E39) -> 0 | F40: =SUM(F38:F39) -> 0 | G40: =SUM(G38:G39) -> 260000
A41: Итого по Выборгскому району | C41: =C36+C40 -> 9821424.46 | D41: =D36+D40 -> 4 | E41: =E36+E40 -> 9071560 | F41: =F36+F40 -> 229864.46 | G41: =G36+G40 -> 520000
A42: Гатчинский муниципальный район
A43: Муниципальное образование Город Гатчина
A44: =A39+1 -> 18 | B44: Г. Гатчина, просп. 25 Октября, д. 59 | C44: =E44+F44+G44 -> 390000 | G44: 390000
A45: =A44+1 -> 19 | B45: Г. Гатчина, ул. Рощинская, д. 11, кор. 1 | C45: 130000 | G45: 130000
A46: =A45+1 -> 20 | B46: Г. Гатчина, ул. Рощинская, д. 13А | C46: 260000 | G46: 260000
A47: 21 | B47: Г. Гатчина, ул. Рощинская, д. 3А | C47: 260000 | G47: 260000
A48: 22 | B48: Г. Гатчина, ул. Хохлова, д. 2 | C48: 6976068.3 | D48: 3 | E48: 6803670 | F48: 172398.3
A49: Итого по муниципальному образованию | C49: =SUM(C44:C48) -> 8016068.3 | D49: =SUM(D44:D48) -> 3 | E49: =SUM(E44:E48) -> 6803670 | F49: =SUM(F44:F48) -> 172398.3 | G49: =SUM(G44:G48) -> 1040000
A50: Итого по Гатчинскому муниципальному району | C50: =C49 -> 8016068.3 | D50: =D49 -> 3 | E50: =E49 -> 6803670 | F50: =F49 -> 172398.3 | G50: =G49 -> 1040000
A51: Киришский муниципальный район
A52: Муниципальное образование Киришское городское поселение
A53: =A48+1 -> 23 | B53: Г. Кириши, бул. Плавницкий, д. 36 | C53: =E53+F53+G53 -> 130000 | G53: 130000
A54: =A53+1 -> 24 | B54: Г. Кириши, пер. Березовый, д. 10 | C54: 2412658.43 | D54: 1 | E54: 2351371 | F54: 61287.43
A55: 25 | B55: Г. Кириши, просп. Ленина, д. 40 | C55: 130000 | G55: 130000
A56: 26 | B56: Г. Кириши, просп. Ленина, д. 9 | C56: 130000 | G56: 130000
A57: 27 | B57: Г. Кириши, ул. Строителей, д. 2 | C57: 130000 | G57: 130000
A58: 28 | B58: Г. Кириши, ул. Строителей, д. 26 | C58: 130000 | G58: 130000
A59: Итого по муниципальному образованию | C59: =SUM(C53:C58) -> 3062658.43 | D59: =SUM(D53:D58) -> 1 | E59: =SUM(E53:E58) -> 2351371 | F59: =SUM(F53:F58) -> 61287.43 | G59: =SUM(G53:G58) -> 650000
A60: Итого по Киришскому муниципальному району | C60: =C59 -> 3062658.43 | D60: =D59 -> 1 | E60: =E59 -> 2351371 | F60: =F59 -> 61287.43 | G60: =G59 -> 650000
A61: Кировский муниципальный район
A62: Муниципальное образование Кировск
A63: =A58+1 -> 29 | B63: Г. Кировск, ул. Молодежная, д. 3 | C63: =E63+F63+G63 -> 2499960.76 | D63: 1 | E63: =2434852*D63 -> 2434852 | F63: 65108.76
A64: =A63+1 -> 30 | B64: Г. Кировск, ул. Молодежная, д. 5 | C64: =E64+F64+G64 -> 2499960.76 | D64: 1 | E64: =2434852*D64 -> 2434852 | F64: 65108.76
A65: Итого по муниципальному образованию | C65: =SUM(C63:C64) -> 4999921.52 | D65: =SUM(D63:D64) -> 2 | E65: =SUM(E63:E64) -> 4869704 | F65: =SUM(F63:F64) -> 130217.52 | G65: =SUM(G63:G64) -> 0
A66: Муниципальное образование Отрадненское городское поселение
A67: =A64+1 -> 31 | B67: Г. Отрадное, ул. Железнодорожная, д. 13 | C67: =E67+F67+G67 -> 5016630.92 | D67: 2 | E67: =2434852*D67 -> 4869704 | F67: =D67*73463.46 -> 146926.92
A68: =A67+1 -> 32 | B68: Г. Отрадное, ул. Зарубина, д. 15 | C68: =E68+F68+G68 -> 2508315.46 | D68: 1 | E68: =2434852*D68 -> 2434852 | F68: =D68*73463.46 -> 73463.46
A69: =A68+1 -> 33 | B69: Г. Отрадное, ул. Лесная, д. 10 | C69: =E69+F69+G69 -> 2508315.46 | D69: 1 | E69: =2434852*D69 -> 2434852 | F69: =D69*73463.46 -> 73463.46
A70: =A69+1 -> 34 | B70: Г. Отрадное, ул. Центральная,д.17 | C70: =E70+F70+G70 -> 10033261.84 | D70: 4 | E70: =2434852*D70 -> 9739408 | F70: =D70*73463.46 -> 293853.84
A71: =A70+1 -> 35 | B71: Г. Отрадное, ул. Щурова, д.4 | C71: =E71+F71+G71 -> 5016630.92 | D71: 2 | E71: =2434852*D71 -> 4869704 | F71: =D71*73463.46 -> 146926.92
A72: Итого по муниципальному образованию | C72: =SUM(C67:C71) -> 25083154.6 | D72: =SUM(D67:D71) -> 10 | E72: =SUM(E67:E71) -> 24348520 | F72: =SUM(F67:F71) -> 734634.6
A73: Итого по Кировскому муниципальному району | C73: =+C72+C65 -> 30083076.12 | D73: =+D72+D65 -> 12 | E73: =+E72+E65 -> 29218224 | F73: =+F72+F65 -> 864852.12 | G73: =+G72+G65 -> 0
A74: Ломоносовский муниципальный район
A75: Муниципальное образование Аннинское городское поселение
A76: =A71+1 -> 36 | B76: Г.п. Новоселье, д. 7 | C76: =E76+F76+G76 -> 520000 | G76: =4*130000 -> 520000
A77: Итого по муниципальному образованию | C77: =SUM(C76) -> 520000 | G77: =SUM(G76) -> 520000
A78: Итого по Ломоносовскому муниципальному району | C78: =C77 -> 520000 | G78: =G77 -> 520000
A79: Лужский муниципальный район
A80: Муниципальное образование Лужское городское поселение
A81: =A76+1 -> 37 | B81: Г. Луга, просп. Урицкого, д. 101 | C81: =E81+F81+G81 -> 2412658.43 | D81: 1 | E81: 2351371 | F81: 61287.43
A82: =A81+1 -> 38 | B82: Г. Луга, просп. Урицкого, д. 99 | C82: =E82+F82+G82 -> 2412658.43 | D82: 1 | E82: 2351371 | F82: 61287.43
A83: Итого по муниципальному образованию | C83: =SUM(C81:C82) -> 4825316.86 | D83: =SUM(D81:D82) -> 2 | E83: =SUM(E81:E82) -> 4702742 | F83: =SUM(F81:F82) -> 122574.86
A84: Итого по Лужскому муниципальному району | C84: =SUM(C83) -> 4825316.86 | D84: =SUM(D83) -> 2 | E84: =SUM(E83) -> 4702742 | F84: =SUM(F83) -> 122574.86
A85: Сосновоборский городской округ
A86: Муниципальное образование Сосновоборский городской округ
A87: =A82+1 -> 39 | B87: Г. Сосновый Бор, ул. Ленинградская, д. 38 | C87: =E87+F87+G88 -> 130000 | G87: 130000
A88: =A87+1 -> 40 | B88: Г. Сосновый Бор, ул. Парковая, д. 70 | C88: =E88+F88+G88 -> 130000 | G88: 130000
A89: Итого по муниципальному образованию | C89: =SUM(C87:C88) -> 260000 | G89: =SUM(G87:G88) -> 260000
A90: Тихвинский муниципальный район
A91: Муниципальное образование Тихвинское городское поселение
A92: =A88+1 -> 41 | B92: Г. Тихвин, ул. Машиностроителей, д.46 | C92: =E92+F92+G92 -> 12541577.3 | D92: 5 | E92: =2434852*D92 -> 12174260 | F92: =D92*73463.46 -> 367317.3
A93: Итого по муниципальному образованию | C93: =SUM(C92) -> 12541577.3 | D93: =SUM(D92) -> 5 | E93: =SUM(E92) -> 12174260 | F93: =SUM(F92) -> 367317.3
A94: Итого по Тихвинскому муниципальному району | C94: =C93 -> 12541577.3 | D94: =D93 -> 5 | E94: =E93 -> 12174260 | F94: =F93 -> 367317.3
A95: Тосненский район
A96: Муниципальное образование Тосненское городское поселение
A97: =A92+1 -> 42 | B97: Г. Тосно, ул. М. Горького, д. 8а | C97: =E97+F97+G97 -> 5016630.92 | D97: 2 | E97: =2434852*D97 -> 4869704 | F97: =D97*73463.46 -> 146926.92
A98: =A97+1 -> 43 | B98: Г. Тосно, пр. Ленина, д. 19 | C98: =E98+F98+G98 -> 10033261.84 | D98: 4 | E98: =2434852*D98 -> 9739408 | F98: =D98*73463.46 -> 293853.84
A99: Итого по муниципальному образованию | C99: =SUM(C97:C98) -> 15049892.76 | D99: =SUM(D97:D98) -> 6 | E99: =SUM(E97:E98) -> 14609112 | F99: =SUM(F97:F98) -> 440780.76
A100: Итого по Тосненскому району | C100: =C99 -> 15049892.76 | D100: =D99 -> 6 | E100: =E99 -> 14609112 | F100: =F99 -> 440780.76
A101: ИТОГО по Ленинградской области | C101: =C9+C31+C41+C50+C60+C73+C78+C84+C89+C94+C100 -> 153102785.1 | D101: =D9+D31+D41+D50+D60+D73+D78+D84+D89+D94+D100 -> 60 | E101: =E9+E31+E41+E50+E60+E73+E78+E84+E89+E94+E100 -> 144755424 | F101: =F9+F31+F41+F50+F60+F73+F78+F84+F89+F94+F100 -> 4057361.11 | G101: =G9+G31+G41+G50+G60+G73+G78+G84+G89+G94+G100 -> 4290000
A102: Осуществление строительного контроля | C102: =(C101-F101-G101)*0.0214 -> 3097766.074
A103: Итого по Ленинградской области со строительным контролем | C103: =C101+C102 -> 156200551.2
G399: =SUM(G375:G398) -> 0
G416: =SUM(G401:G415) -> 0
G423: =SUM(G418:G422) -> 0
G426: =SUM(G425:G425) -> 0
G434: =SUM(G428:G433) -> 0
G442: =SUM(G436:G441) -> 0
G443: =#REF!+#REF!+#REF!+#REF!+#REF!+F443+#REF!+#REF!+#REF!+#REF!+#REF!+#REF!+#REF!+#REF! -> 
G444: =#REF!+#REF!+#REF!+#REF!+#REF!+F444+#REF!+#REF!+#REF!+#REF!+#REF!+#REF!+#REF!+#REF! -> 
G445: =#REF!+#REF!+#REF!+#REF!+#REF!+F445+#REF!+#REF!+#REF!+#REF!+#REF!+#REF!+#REF!+#REF! -> 
G446: =#REF!+#REF!+#REF!+#REF!+#REF!+F446+#REF!+#REF!+#REF!+#REF!+#REF!+#REF!+#REF!+#REF! -> 
G447: =#REF!+#REF!+#REF!+#REF!+#REF!+F447+#REF!+#REF!+#REF!+#REF!+#REF!+#REF!+#REF!+#REF! -> 
G473: =SUM(G449:G472) -> 0
G474: =SUM(G473+G442+G434+G426+G423+G416+G399) -> 0
G510: =SUM(G477:G509) -> 0
G511: =G510 -> 0
G520: =SUM(G514:G517) -> 0
G523: =SUM(G522:G522) -> 0
G528: =SUM(G525:G527) -> 0
G534: =SUM(G530:G533) -> 0
G540: =SUM(G536:G539) -> 0
G544: =SUM(G542:G543) -> 0
G550: =SUM(G546:G549) -> 0
G551: =G528+G520+G523+G550+G544+G534+G540 -> 0
G556: =SUM(G554:G555) -> 0
G579: =SUM(G570:G578) -> 0
G583: =SUM(G581:G582) -> 0
G586: =SUM(G585:G585) -> 0
G595: =SUM(G588:G594) -> 0
G603: =SUM(G597:G602) -> 0
G606: =SUM(G605:G605) -> 0
G609: =SUM(G608) -> 0
G616: =G556+G579+G583+G586+G595+G603+G606+G609+G615 -> 0
G627: =SUM(G619:G626) -> 0
G628: =G627 -> 0
G636: =SUM(G631:G635) -> 0
G642: =SUM(G638:G641) -> 0
G647: =SUM(G644:G646) -> 0
G653: =SUM(G649:G652) -> 0
G657: =SUM(G655:G656) -> 0
G665: =G663+G664 -> 0
G666: =G636+G642+G647+G653+G657 -> 0
G670: =SUM(G669:G669) -> 0
G673: =SUM(G672) -> 0
G711: =SUM(G675:G710) -> 0
G712: =G711+G673+G670 -> 0
G833: =SUM(G714:G832) -> 0
G945: =SUM(G841:G944) -> 0
G965: =SUM(G947:G964) -> 0
G966: =G945+G965 -> 0
G970: =SUM(G969:G969) -> 0
G978: =SUM(G972:G977) -> 0
G981: =SUM(G980:G980) -> 0
G1001: =SUM(G983:G1000) -> 0
G1004: =SUM(G1003:G1003) -> 0
G1007: =SUM(G1006) -> 0
G1008: =G978+G981+G1004+G1001+G970+G1007 -> 0

Sheet 2022 Раздел 4
A1: Раздел IV. Перечень многоквартирных домов, в которых будет проводиться капитальный ремонт лифтового оборудования в 2022 году, за счет средств собственников, формирующих фонд капитального ремонта на счетах регионального оператора
A2: № п\п | B2: Адрес МКД | C2: Стоимость капитального ремонта ВСЕГО | D2: Ремонт или замена лифтового оборудования | F2: ТО | G2: Проектные работы
C3: руб. | D3: ед. | E3: руб | F3: руб. | G3: руб.
A4: 1 | B4: 2 | C4: 3 | D4: 4 | E4: 5 | F4: 6 | G4: 7
A6: Волховский муниципальный район
A7: Муниципальное образование Город Волхов
A8: 1 | B8: Г. Волхов, просп. Волховский, д. 57 | C8: =E8+F8+G8 -> 2605709.46 | D8: 1 | E8: =2532246*D8 -> 2532246 | F8: =73463.46*D8 -> 73463.46
A9: Итого по муниципальному образованию | C9: =SUM(C8:C8) -> 2605709.46 | D9: =SUM(D8:D8) -> 1 | E9: =2532246*D9 -> 2532246 | F9: =73463.46*D9 -> 73463.46 | G9: =SUM(G8:G8) -> 0
A10: Итого по Волховскому муниципальному району | C10: =C9 -> 2605709.46 | D10: =D9 -> 1 | E10: =E9 -> 2532246 | F10: =F9 -> 73463.46 | G10: =G9 -> 0
A11: Всеволожский муниципальный район
A12: Муниципальное образование Город Всеволожск
A13: =A8+1 -> 2 | B13: Г. Всеволожск, ул. Василеозерская, д. 7 | C13: =E13+F13+G13 -> 5211418.92 | D13: 2 | E13: =2532246*D13 -> 5064492 | F13: =73463.46*D13 -> 146926.92
A14: =A13+1 -> 3 | B14: Г. Всеволожск, ул. Ленинградская, д. 30, корп. 1 | C14: =E14+F14+G14 -> 2605709.46 | D14: 1 | E14: =2532246*D14 -> 2532246 | F14: =73463.46*D14 -> 73463.46
A15: Итого по муниципальному образованию | C15: =SUM(C13:C14) -> 7817128.38 | D15: =SUM(D13:D14) -> 3 | E15: =SUM(E13:E14) -> 7596738 | F15: =SUM(F13:F14) -> 220390.38 | G15: =SUM(G13:G14) -> 0
A16: Муниципальное образование Сертолово
A17: =A14+1 -> 4 | B17: г.Сертолово, микрорайон Сертолово-1, ул.Ветеранов,д.11,корп.1 | C17: =E17+F17+G17 -> 8208570.39 | D17: 3 | E17: 7596738 | F17: 221832.39 | G17: =130000*D17 -> 390000
A18: Итого по муниципальному образованию | C18: =SUM(C17) -> 8208570.39 | D18: =SUM(D17) -> 3 | E18: =SUM(E17) -> 7596738 | F18: =SUM(F17) -> 221832.39 | G18: =SUM(G17) -> 390000
A19: Итого по Всеволожскому муниципальному району | C19: =C15+C18 -> 16025698.77 | D19: =D15+D18 -> 6 | E19: =E15+E18 -> 15193476 | F19: =F15+F18 -> 442222.77 | G19: 390000
A20: Выборгский район
A21: Муниципальное образование Город Выборг
A22: =A17+1 -> 5 | B22: Г. Выборг, бул. Кутузова д. 16 | C22: =E22+F22+G22 -> 4925414.92 | D22: 2 | E22: 4543566 | F22: 121848.92 | G22: 260000
A23: =A22+1 -> 6 | B23: Г. Выборг, пер. Школьный, д. 3 | C23: =E23+F23+G23 -> 2462707.46 | D23: 1 | E23: 2271783 | F23: 60924.46 | G23: 130000
A24: =A23+1 -> 7 | B24: Г. Выборг, ул. Гагарина, д. 69 | C24: =E24+F24+G24 -> 5013424.86 | D24: 2 | E24: 4890850 | F24: 122574.86
A25: Итого по муниципальному образованию | C25: =SUM(C22:C24) -> 12401547.24 | D25: =SUM(D22:D24) -> 5 | E25: 11706199 | F25: 305348.24 | G25: 390000
A26: Муниципальное образование Полянское сельское поселение
A27: =A24+1 -> 8 | B27: пос. Каменка, ул. Гвардейская, д. 75 | C27: =E27+F27+G27 -> 2597354.76 | D27: 1 | E27: 2532246 | F27: 65108.76
A28: =A27+1 -> 9 | B28: пос. Каменка, ул. Гвардейская, д. 77 | C28: =E28+F28+G28 -> 2597354.76 | D28: 1 | E28: 2532246 | F28: 65108.76
A29: Итого по муниципальному образованию | C29: =SUM(C27:C28) -> 5194709.52 | D29: =SUM(D27:D28) -> 2 | E29: =SUM(E27:E28) -> 5064492 | F29: =SUM(F27:F28) -> 130217.52 | G29: =SUM(G27:G28) -> 0
A30: Итого по Выборгскому району | C30: =C25+C29 -> 17596256.76 | D30: =D25+D29 -> 7 | E30: =E25+E29 -> 16770691 | F30: =F25+F29 -> 435565.76 | G30: =G25+G29 -> 390000
A31: Гатчинский муниципальный район
A32: Муниципальное образование Город Гатчина
A33: =A28+1 -> 10 | B33: Г. Гатчина, просп. 25 Октября, д. 59 | C33: =E33+F33+G33 -> 6976283.4 | D33: 3 | E33: 6815349 | F33: 160934.4
A34: =A33+1 -> 11 | B34: Г. Гатчина, ул. Рощинская, д. 11, кор. 1 | C34: =E34+F34+G34 -> 2506712.43 | D34: 1 | E34: 2445425 | F34: 61287.43
A35: =A34+1 -> 12 | B35: Г. Гатчина, ул. Рощинская, д. 13А | C35: =E35+F35+G35 -> 4650855.6 | D35: 2 | E35: 4543566 | F35: 107289.6
A36: 13 | B36: Г. Гатчина, ул. Рощинская, д. 3А | C36: =E36+F36+G36 -> 5013424.86 | D36: 2 | E36: 4890850 | F36: 122574.86
A37: Итого по муниципальному образованию | C37: =SUM(C33:C36) -> 19147276.29 | D37: =SUM(D33:D36) -> 8 | E37: =SUM(E33:E36) -> 18695190 | F37: =SUM(F33:F36) -> 452086.29 | G37: =SUM(G33:G36) -> 0
A38: Итого по Гатчинскому муниципальному району | C38: =C37 -> 19147276.29 | D38: =D37 -> 8 | E38: =E37 -> 18695190 | F38: =F37 -> 452086.29 | G38: =G37 -> 0
A39: Киришский муниципальный район
A40: Муниципальное образование Киришское городское поселение
A41: =A36+1 -> 14 | B41: Г. Кириши, бул. Плавницкий, д. 36 | C41: =E41+F41+G41 -> 2506712.43 | D41: 1 | E41: 2445425 | F41: 61287.43
A42: =A41+1 -> 15 | B42: Г. Кириши, просп. Ленина, д. 40 | C42: 2416070.1 | D42: 1 | E42: 2358604 | F42: 57466.1
A43: =A42+1 -> 16 | B43: Г. Кириши, просп. Ленина, д. 9 | C43: 2597354.76 | D43: 1 | E43: =2532246*D43 -> 2532246 | F43: 65108.76
A44: =A43+1 -> 17 | B44: Г. Кириши, ул. Строителей, д. 2 | C44: 2597354.76 | D44: 1 | E44: =2532246*D44 -> 2532246 | F44: 65108.76
A45: =A44+1 -> 18 | B45: Г. Кириши, ул. Строителей, д. 26 | C45: 2597354.76 | D45: 1 | E45: =2532246*D45 -> 2532246 | F45: 65108.76
A46: =A45+1 -> 19 | B46: Г. Кириши, ул. Строителей, д. 30А | C46: 2727354.76 | D46: 1 | E46: 2532246 | F46: 65108.76 | G46: 130000
A47: Итого по муниципальному образованию | C47: =SUM(C41:C46) -> 15442201.57 | D47: =SUM(D41:D46) -> 6 | E47: =SUM(E41:E46) -> 14933013 | F47: =SUM(F41:F46) -> 379188.57 | G47: =SUM(G41:G46) -> 130000
A48: Итого по Киришскому муниципальному району | C48: =C47 -> 15442201.57 | D48: =D47 -> 6 | E48: =E47 -> 14933013 | F48: =F47 -> 379188.57 | G48: =G47 -> 130000
A49: Кировский муниципальный район
A50: Муниципальное образование Отрадненское городское поселение
A51: =A46+1 -> 20 | B51: Г. Отрадное, ул. Гагарина, д. 16 | C51: =E51+F51+G51 -> 5472380.26 | D51: 2 | E51: 5064492 | F51: 147888.26 | G51: 260000
A52: =A51+1 -> 21 | B52: Г. Отрадное, ул. Лесная, д. 8 | C52: 13680950.65 | D52: 5 | E52: 12661230 | F52: 369720.65 | G52: 650000
A53: Итого по муниципальному образованию | C53: =C51+C52 -> 19153330.91 | D53: =D51+D52 -> 7 | E53: 17725722 | F53: 517608.91 | G53: 910000
A54: Итого по Кировскому муниципальному району | C54: =C53 -> 19153330.91 | D54: =D53 -> 7 | E54: 17725722 | F54: 517608.91 | G54: 910000
A55: Ломоносовский муниципальный район
A56: Муниципальное образование Аннинское городское поселение
A57: =A52+1 -> 22 | B57: Г.п. Новоселье, д. 7 | C57: =E57+F57+G57 -> 10026849.72 | D57: 4 | E57: 9781700 | F57: 245149.72
A58: Итого по муниципальному образованию | C58: =SUM(C57) -> 10026849.72 | D58: =SUM(D57) -> 4 | E58: =SUM(E57) -> 9781700 | F58: =SUM(F57) -> 245149.72 | G58: =SUM(G57) -> 0
A59: Итого по Ломоносовскому муниципальному району | C59: =C58 -> 10026849.72 | D59: =D58 -> 4 | E59: =E58 -> 9781700 | F59: =F58 -> 245149.72 | G59: =G58 -> 0
A60: Лужский муниципальный район
A61: Муниципальное образование Лужское городское поселение
A62: =A57+1 -> 23 | B62: Г. Луга, ул. Миккели, д. 1, кор. 2 | C62: =E62+F62+G62 -> 2645029.24 | D62: 1 | E62: 2445425 | F62: 69604.24 | G62: 130000
A63: Итого по муниципальному образованию | C63: =C62 -> 2645029.24 | D63: =D62 -> 1 | E63: 2445425 | F63: 69604.24 | G63: 130000
A64: Сосновоборский городской округ
A65: Муниципальное образование Сосновоборский городской округ
A66: =A62+1 -> 24 | B66: Г. Сосновый Бор, ул. Ленинградская, д. 38 | C66: =E66+F66+G66 -> 2597354.76 | D66: 1 | E66: =2532246*D66 -> 2532246 | F66: 65108.76
A67: =A66+1 -> 25 | B67: Г. Сосновый Бор, ул. Ленинградская, д. 50 | C67: 2736190.13 | D67: 1 | E67: 2532246 | F67: 73944.13 | G67: 130000
A68: =A66+1 -> 25 | B68: Г. Сосновый Бор, ул. Парковая, д. 70 | C68: 2597354.76 | D68: 1 | E68: =2532246*D68 -> 2532246 | F68: 65108.76
A69: Итого по муниципальному образованию | C69: =SUM(C66:C68) -> 7930899.65 | D69: =SUM(D66:D68) -> 3 | E69: =SUM(E66:E68) -> 7596738 | F69: =SUM(F66:F68) -> 204161.65 | G69: =SUM(G66:G68) -> 130000
A71: Муниципальное образование Тосненское городское поселение
A72: =A68+1 -> 26 | B72: Г. Тосно, ул. Блинникова, д. 8 | C72: =E72+F72+G72 -> 14136755.1 | D72: 5 | E72: 13095335 | F72: 391420.1 | G72: 650000
A73: =A72+1 -> 27 | B73: Г. Тосно, пр. Ленина, д. 69 | C73: 6221849.6 | D73: 2 | E73: 5787922 | F73: 173927.6 | G73: 260000
A74: Итого по муниципальному образованию | C74: =C72+C73 -> 20358604.7 | D74: =D72+D73 -> 7 | E74: 18883257 | F74: 565347.7 | G74: 910000
A75: ИТОГО по Ленинградской области | C75: =C10+C19+C30+C38+C48+C54+C59+C63+C69+C74 -> 130931857.1 | D75: =D10+D19+D30+D38+D48+D54+D59+D63+D69+D74 -> 50 | E75: =E10+E19+E30+E38+E48+E54+E59+E63+E69+E74 -> 124557458 | F75: =F10+F19+F30+F38+F48+F54+F59+F63+F69+F74 -> 3384399.07 | G75: =G10+G19+G30+G38+G48+G54+G59+G63+G69+G74 -> 2990000
A76: Осуществление строительного контроля | C76: =(C75-F75-G75)*0.0214 -> 2665529.601
A77: Итого по Ленинградской области со строительным контролем | C77: =C75+C76 -> 133597386.7
G151: =SUM(G138:G150) -> 0
G174: =SUM(G156:G173) -> 0
G185: =SUM(G179:G184) -> 0
G193: =SUM(G187:G192) -> 0
G199: =SUM(G195:G197) -> 0
G200: =G151+G174+G185+G199+G193+G177 -> 0
G207: =SUM(G203:G206) -> 0
G271: =SUM(G212:G270) -> 0
G278: =SUM(G277) -> 0
G285: =G207+G271+G278 -> 0
G300: =SUM(G288:G299) -> 0
G305: =SUM(G302:G304) -> 0
G306: =G300+G305 -> 0
G336: =SUM(G309:G335) -> 0
G341: =SUM(G338:G340) -> 0
G345: =SUM(G343:G344) -> 0
G346: =G336+G345+G341 -> 0
G373: =SUM(G349:G372) -> 0
G390: =SUM(G375:G389) -> 0
G397: =SUM(G392:G396) -> 0
G400: =SUM(G399:G399) -> 0
G408: =SUM(G402:G407) -> 0
G416: =SUM(G410:G415) -> 0
G417: =#REF!+#REF!+#REF!+#REF!+#REF!+F417+#REF!+#REF!+#REF!+#REF!+#REF!+#REF!+#REF!+#REF! -> 
G418: =#REF!+#REF!+#REF!+#REF!+#REF!+F418+#REF!+#REF!+#REF!+#REF!+#REF!+#REF!+#REF!+#REF! -> 
G419: =#REF!+#REF!+#REF!+#REF!+#REF!+F419+#REF!+#REF!+#REF!+#REF!+#REF!+#REF!+#REF!+#REF! -> 
G420: =#REF!+#REF!+#REF!+#REF!+#REF!+F420+#REF!+#REF!+#REF!+#REF!+#REF!+#REF!+#REF!+#REF! -> 
G421: =#REF!+#REF!+#REF!+#REF!+#REF!+F421+#REF!+#REF!+#REF!+#REF!+#REF!+#REF!+#REF!+#REF! -> 
G447: =SUM(G423:G446) -> 0
G448: =SUM(G447+G416+G408+G400+G397+G390+G373) -> 0
G484: =SUM(G451:G483) -> 0
G485: =G484 -> 0
G494: =SUM(G488:G491) -> 0
G497: =SUM(G496:G496) -> 0
G502: =SUM(G499:G501) -> 0
G508: =SUM(G504:G507) -> 0
G514: =SUM(G510:G513) -> 0
G518: =SUM(G516:G517) -> 0
G524: =SUM(G520:G523) -> 0
G525: =G502+G494+G497+G524+G518+G508+G514 -> 0
G530: =SUM(G528:G529) -> 0
G553: =SUM(G544:G552) -> 0
G557: =SUM(G555:G556) -> 0
G560: =SUM(G559:G559) -> 0
G569: =SUM(G562:G568) -> 0
G577: =SUM(G571:G576) -> 0
G580: =SUM(G579:G579) -> 0
G583: =SUM(G582) -> 0
G590: =G530+G553+G557+G560+G569+G577+G580+G583+G589 -> 0
G601: =SUM(G593:G600) -> 0
G602: =G601 -> 0
G610: =SUM(G605:G609) -> 0
G616: =SUM(G612:G615) -> 0
G621: =SUM(G618:G620) -> 0
G627: =SUM(G623:G626) -> 0
G631: =SUM(G629:G630) -> 0
G639: =G637+G638 -> 0
G640: =G610+G616+G621+G627+G631 -> 0
G644: =SUM(G643:G643) -> 0
G647: =SUM(G646) -> 0
G685: =SUM(G649:G684) -> 0
G686: =G685+G647+G644 -> 0
G807: =SUM(G688:G806) -> 0
G919: =SUM(G815:G918) -> 0
G939: =SUM(G921:G938) -> 0
G940: =G919+G939 -> 0
G944: =SUM(G943:G943) -> 0
G952: =SUM(G946:G951) -> 0
G955: =SUM(G954:G954) -> 0
G975: =SUM(G957:G974) -> 0
G978: =SUM(G977:G977) -> 0
G981: =SUM(G980) -> 0
G982: =G952+G955+G978+G975+G944+G981 -> 0
